Cogmind - Beta 17 @@@ ROGUE MODE // 2026.06.29 @ 15:52:25 Player: Petvaria Result: Destroyed by EQ-055 with Hardcell Cannon Performance ------------- Evolutions (9) 4500 Regions Visited (30) 6000 Robots Destroyed (690) 3450 Value Destroyed (38000) 38000 Prototype IDs (73) 1460 Alien Tech Used (0) 0 Bonus (45196) 45196 TOTAL SCORE: 98606 Bonus ------- High Alert Combat Kills 8648 Follower Combat Kills 3717 Prayed to X0-1V1 5000 Major X0-1V1 Interference 10550 Entered Garrisons 2000 Used RIF Installer 6000 Met MAIN.C 5000 Destroyed MAIN.C Shell 5000 Friendly Fire -719 Cogmind --------- Core Integrity 0/1510 Matter 180/300 Energy 980/2380 System Corruption 59% Temperature Cool (0) Movement Treading (330) Ox2 Location -1/Command Parts ------- > --- POWER (4) -------- Zero-point Reactor Zero-point Reactor > --- PROPULSION (6) --- Armored Heavy Treads Experimental Biometal Leg > --- UTILITY (10) ----- 2N-1CE's Frost Array Huge Storage Unit Experimental Core Shielding Graphene Brace Thermal Barrier Advanced Force Field > --- WEAPON (5) ------- Cooled Proton Cannon Graviton Cannon > --- INVENTORY (25) --- Advanced Cooling System Experimental Coolant Injector Experimental Energy Well (0) Experimental Matter Compressor (500) Improved Weapon Cycler Advanced Transmission Jammer Experimental Thermal Defense Suite Long-range Tractor Beam Perforator Advanced Remote Datajack Advanced Remote Datajack Peak State ------------ > --- POWER ------------ Graviton Reactor Quantum Reactor Improved Quantum Reactor > --- PROPULSION ------- Armored Medium Treads Heavy Siege Treads Advanced Heavy Treads Advanced Heavy Siege Treads > --- UTILITY ---------- 2N-1CE's Frost Array Huge Storage Unit Experimental Core Analyzer Improved Weapon Cycler Advanced Transmission Jammer SHELL Armor AEGIS Remote Shield X0-1V1's Piety Tracker > --- WEAPON ----------- Enhanced Nova Cannon Potential Cannon Perforator > --- INVENTORY -------- Particle Reactor Reinforced Quantum Reactor Armored Medium Treads Biometal Medium Treads Advanced Cooling System Experimental Energy Well Experimental Matter Compressor Experimental Armor Integrity Analyzer Graphene Brace Thermal Barrier Experimental Thermal Defense Suite Advanced Force Field Advanced Point Defense System Relay Coupler [Proto] Skeleton Box Long-range Tractor Beam Railgun Railgun Helical Railgun Helical Railgun Helical Railgun Helical Railgun Hellfire Missile Launcher Advanced Remote Datajack [Rating: 243] Favorites ----------- Power Reinforced Quantum Reactor Engine Improved Ion Engine Power Core Neutrino Core Reactor Reinforced Quantum Reactor Propulsion Light Treads Treads Light Treads Leg Carbon-fiber Leg Wheel Armored Huge Wheel Hover Unit Cooled Airjet Utility X0-1V1's Piety Tracker Device X0-1V1's Piety Tracker Storage Huge Storage Unit Processor Experimental Core Analyzer Hackware Relay Coupler [NC] Protection Hardened Medium Armor Plating Weapon KE Penetrator Energy Gun Plasma Rifle Energy Cannon Enhanced Nova Cannon Ballistic Gun KE Penetrator Ballistic Cannon Perforator Launcher Precision Rocket Launcher Special Weapon Remote Datajack Impact Weapon Thunder Hammer Slashing Weapon Heavy Scimitar of Distortion Build | -11 -10 -10 -9 -9 -8 -8 -8 -8 -8 -7 -7 -7 -7 -6 -6 -6 -6 -5 -5 -5 -5 -4 -4 -4 -4 -3 -3 -2 -1 -1 ------- Run | Yrd Mat Min Mat Sto Mat Gar Mat Gar Mat Fac Gar Fac Gar Fac Gar Fac Gar Fac Gar Fac Gar Fac Gar Fac Gar Res Tes Res Acc Com Slots Evolved 18 | . . . 2 . 2 . . . . 2 . . . 2 . . . 2 . . . 2 . . . 2 . 2 2 . Power 2 | . . . . . . . . . . . . . . . . . . . . . . 1 . . . . . . 1 . Propulsion 5 | . . . 1 . . . . . . 1 . . . 1 . . . . . . . . . . . 1 . . 1 . Utility 8 | . . . 1 . 1 . . . . 1 . . . 1 . . . 1 . . . . . . . 1 . 2 . . Weapon 3 | . . . . . 1 . . . . . . . . . . . . 1 . . . 1 . . . . . . . . Parts Attached 399 | 8 6 5 34 19 1 2 17 16 5 4 28 7 14 10 20 9 30 5 18 4 18 16 10 . 7 33 19 10 6 18 Power 41 | 1 . . 3 1 . . 2 5 . . 4 . . 1 1 1 3 . 4 1 . 3 1 . . 2 3 1 1 3 Engine 11 | 1 . . 3 1 . . . 2 . . 2 . . 1 . . 1 . . . . . . . . . . . . . Core 11 | . . . . . . . 2 3 . . 2 . . . . 1 1 . 1 1 . . . . . . . . . . Reactor 19 | . . . . . . . . . . . . . . . 1 . 1 . 3 . . 3 1 . . 2 3 1 1 3 Propulsion 99 | 2 . 2 9 6 . . 6 5 1 1 10 1 3 3 9 1 10 2 5 1 4 1 2 . 2 6 1 1 1 4 Treads 89 | 2 . 1 7 6 . . 5 5 1 1 9 1 2 3 9 1 7 2 5 1 4 1 2 . 2 6 1 1 1 3 Leg 4 | . . . 1 . . . . . . . . . . . . . 2 . . . . . . . . . . . . 1 Wheel 5 | . . 1 1 . . . . . . . 1 . 1 . . . 1 . . . . . . . . . . . . . Hover 1 | . . . . . . . 1 . . . . . . . . . . . . . . . . . . . . . . . Flight . | . . . . . . . . . . . . . . . . . . . . . . . . . . . . . . . Utility 131 | 2 3 . 10 1 1 1 5 3 2 3 8 1 3 4 6 2 10 2 4 2 9 7 2 . 1 17 8 5 2 7 Device 68 | 1 1 . 3 1 1 . 1 1 1 1 6 . 2 1 3 . 4 . 2 1 8 4 1 . 1 11 6 3 1 3 Storage 14 | 1 1 . 1 . . . 1 . . 1 . . . . 1 . 1 . . 1 . . . . . 2 2 1 1 . Processor 8 | . . . 1 . . 1 . . . 1 . . . 1 . . . 2 . . . . . . . 1 . . . 1 Hackware 16 | . . . . . . . . . . . . 1 . 1 1 1 3 . 1 . . 3 1 . . 3 . . . 1 Protection 25 | . 1 . 5 . . . 3 2 1 . 2 . 1 1 1 1 2 . 1 . 1 . . . . . . 1 . 2 Artifact . | . . . . . . . . . . . . . . . . . . . . . . . . . . . . . . . Weapon 128 | 3 3 3 12 11 . 1 4 3 2 . 6 5 8 2 4 5 7 1 5 . 5 5 5 . 4 8 7 3 2 4 Energy Gun 13 | 2 . . 4 . . . 1 . . . 1 2 . . . . 2 . . . . 1 . . . . . . . . Energy Cannon 8 | . . . . 1 . . . . . . . . . . . 1 1 . 1 . . . . . . 1 2 . . 1 Ballistic Gun 83 | 1 2 3 6 6 . 1 2 2 2 . 3 2 7 2 4 2 4 1 4 . 4 2 4 . 4 5 3 3 2 2 Ballistic Cannon 6 | . . . 1 1 . . . . . . 2 . . . . . . . . . . . . . . . 1 . . 1 Launcher 11 | . 1 . 1 2 . . 1 1 . . . . 1 . . 2 . . . . . . . . . 1 1 . . . Special Weapon 6 | . . . . 1 . . . . . . . 1 . . . . . . . . 1 1 1 . . 1 . . . . Impact Weapon . | . . . . . . . . . . . . . . . . . . . . . . . . . . . . . . . Slashing Weapon 1 | . . . . . . . . . . . . . . . . . . . . . . 1 . . . . . . . . Piercing Weapon . | . . . . . . . . . . . . . . . . . . . . . . . . . . . . . . . Special Melee Weapon . | . . . . . . . . . . . . . . . . . . . . . . . . . . . . . . . Unidentified Prototypes 57 | . 1 . 6 2 . . 4 . . . . 1 . . . 3 4 2 . 2 . 4 . . . 6 10 6 . 6 Corrupted Parts 5 | . . . . . . . . . . . . . . . . . . . . . . . . . . . . . . 5 System Corruption 25 | . . . . . . . . . . . . . . . . . . . . . . . . . . . . . . 25 Parts Lost 79 | . . 2 5 1 . 1 1 3 . . 8 . 3 . 4 2 12 1 . . 3 4 2 . 2 2 . . 1 22 Power 13 | . . . 1 1 . . . 1 . . 2 . . . . 1 2 . . . . . . . . . . . . 5 Propulsion 22 | . . 2 2 . . . . . . . 4 . . . 1 1 5 . . . . . 1 . . . . . . 6 Utility 24 | . . . 2 . . 1 . 1 . . 2 . 1 . 2 . 2 . . . 3 1 . . 2 1 . . 1 5 Weapon 20 | . . . . . . . 1 1 . . . . 2 . 1 . 3 1 . . . 3 1 . . 1 . . . 6 Highest Loss Streak 21 | . . 1 2 1 . 1 1 1 . . 3 . 1 . 1 1 7 1 . . 1 2 1 . 1 1 . . 1 21 To Critical Strikes . | . . . . . . . . . . . . . . . . . . . . . . . . . . . . . . . Average Backups 23 | 4 17 18 20 24 23 23 24 24 24 24 24 23 23 24 24 24 23 24 24 23 23 22 23 24 23 23 23 23 22 21 Power 1 | . 1 2 1 . 1 1 1 . 1 1 . 1 1 1 1 . . 1 1 1 1 1 2 2 2 1 1 2 1 1 Propulsion 3 | 3 6 4 4 5 5 5 4 3 3 3 2 2 3 3 2 2 . 2 2 2 2 2 3 3 3 3 2 3 2 2 Utility 10 | . 2 5 8 10 10 10 9 10 12 10 11 11 11 13 13 12 13 15 16 14 12 12 10 12 10 11 12 11 11 10 Weapon 6 | . 7 5 6 7 7 7 8 9 6 8 8 7 5 4 5 6 7 5 3 4 5 4 4 5 5 5 4 4 5 5 Tool/Special . | . . . . . . . . . . . . . . . . . . . . . . . . . . . . . . . Unused Backups 129 | . . 2 17 7 . 2 1 4 1 . 4 3 7 3 7 2 6 2 11 4 3 . 15 . 4 6 6 6 3 3 Power 16 | . . . 2 1 . 1 1 1 . . 2 . . . 1 . 1 . . . 2 . 3 . . . 1 . . . Propulsion 32 | . . 1 5 4 . . . . 1 . 1 . . . 1 . . . 4 . . . 6 . 1 2 . 3 3 . Utility 48 | . . 1 7 1 . 1 . 2 . . . 3 4 3 2 . 3 2 1 4 1 . 1 . 2 2 5 1 . 2 Weapon 29 | . . . 3 1 . . . 1 . . 1 . 3 . 3 2 2 . 6 . . . 4 . 1 1 . 1 . . Tool/Special 4 | . . . . . . . . . . . . . . . . . . . . . . . 1 . . 1 . 1 . 1 Average Slot Usage (%) 93 | . 100 95 97 99 97 99 99 99 99 99 98 92 91 95 99 99 93 93 92 88 86 88 89 89 88 89 87 72 74 75 Engine 3 | . 14 11 10 11 9 9 1 3 . . 6 7 7 6 2 . 2 . . . . . . . . . . . . . Core 1 | . . . . . . . 8 5 9 7 . . . . . . 3 5 1 . . . . . . . . . . . Reactor 3 | . . . . . . . . . . . . . . . 4 5 . . 3 5 5 9 10 10 10 8 9 8 12 15 Treads 22 | . 28 17 27 33 27 27 26 27 27 30 28 15 15 26 33 32 19 23 21 17 17 15 15 15 15 18 18 12 15 12 Device 14 | . 7 11 10 10 15 18 18 17 18 20 14 10 13 20 19 13 11 5 5 15 12 12 15 15 18 21 20 17 16 18 Storage 7 | . 14 11 10 11 9 9 9 9 9 7 7 7 7 6 6 6 6 5 5 5 5 5 5 5 5 4 4 4 4 4 Processor 4 | . . . . . . . . . . 1 7 7 6 4 6 6 6 11 11 11 11 10 10 10 10 4 4 4 4 4 Hackware 4 | . . . . . . . . . . . . 4 2 1 . 5 9 11 11 11 9 10 10 10 7 9 7 4 3 . Protection 5 | . 6 . 10 11 9 8 8 9 8 7 6 7 6 6 6 5 4 5 4 1 4 1 . . . . . 3 4 3 Ballistic Gun 19 | . 27 34 18 18 27 26 26 26 27 23 15 19 20 19 19 18 9 17 21 16 15 19 19 21 19 16 15 9 6 11 Peak Build Rating 243 | 7 21 24 42 43 41 43 45 48 48 55 58 64 67 74 83 77 99 111 120 120 127 148 150 148 149 167 185 214 243 243 Average Rating 88 | 4 12 22 32 35 40 41 42 43 46 54 49 59 64 70 72 70 78 106 112 115 120 140 145 148 143 161 166 206 230 229 On Entrance 87 | . 7 21 21 34 37 41 42 42 46 48 55 58 64 67 70 73 67 93 110 114 116 119 144 148 148 144 161 180 213 241 Avg Prop Armor Cover (%) 11 | . . 10 15 . . . . . . . 12 12 12 16 . . 8 . . . . . . . . 8 . . . 4 Naked Turns . | . . . . . . . . . . . . . . . . . . . . . . . . . . . . . . . Heaviest Build 260 | 14 50 52 112 106 107 113 109 110 104 110 108 113 114 120 125 122 121 124 129 133 141 164 166 166 169 181 198 209 239 260 Greatest Support 247 | 40 40 40 66 69 69 69 69 73 73 96 96 28 28 100 130 128 145 148 175 160 180 185 190 190 190 215 210 210 247 247 Greatest Overweight (x) 8 | . 1 5 8 1 1 1 2 1 1 1 3 4 4 4 1 1 4 . 1 . . . . . . 1 1 1 . 2 Average Overweight (x) . | . . 3 2 1 1 1 1 1 1 1 1 3 3 2 . . . . . . . . . . . . . . . . Largest Inventory Capacity 25 | 8 20 20 25 25 25 25 25 25 25 25 25 25 25 25 25 25 25 25 25 25 25 25 25 25 25 25 25 25 25 25 Average Capacity 24 | 6 19 20 22 25 25 25 25 25 25 25 25 25 25 25 25 25 25 25 25 25 25 25 25 25 25 25 25 25 25 25 Most Carried 25 | 8 20 20 23 25 24 25 25 25 25 25 25 25 25 25 25 25 25 25 25 25 25 25 25 25 25 25 25 25 25 25 Average Carried 23 | 4 17 18 20 24 23 23 24 24 24 24 24 24 24 24 24 24 23 24 24 24 24 24 24 25 24 24 24 24 23 23 Final Capacity 25 | 8 20 20 25 25 25 25 25 25 25 25 25 25 25 25 25 25 25 25 25 25 25 25 25 25 25 25 25 25 25 25 Final Carried 25 | 7 20 20 23 25 23 23 25 23 25 24 25 25 25 25 25 22 25 25 25 25 25 24 25 25 25 25 25 25 24 12 Class Distribution -------------------- 30% | Botlord-Tank 16% | Scavenger-Tank 15% | Mutant 14% | Tank 8% | Bothacker-Gunner Dominant Class ---------------- Mutant | -10/Materials Mutant | -10/Mines Mutant | -9/Materials Mutant | -9/Storage Commander-Tank | -8/Materials Tank | -8/Garrison Tank | -8/Materials Tank | -8/Garrison Tank | -8/Materials Tank | -7/Factory Scavenger-Tank | -7/Garrison Scavenger-Tank | -7/Factory Scavenger-Tank | -7/Garrison Bothacker-Gunner | -6/Factory Bothacker-Gunner | -6/Garrison Bothacker-Gunner | -6/Factory Bothacker-Gunner | -6/Garrison Botlord-Tank | -5/Factory Botlord-Tank | -5/Garrison Botlord-Tank | -5/Factory Botlord-Tank | -5/Garrison Botlord-Tank | -4/Factory Botlord-Tank | -4/Garrison Botlord-Tank | -4/Factory Botlord-Tank | -4/Garrison Botlord-Tank | -3/Research Botlord-Tank | -3/Testing Scavenger-Tank | -2/Research Tank | -1/Access Generator-Tank | -1/Command Resources | -11 -10 -10 -9 -9 -8 -8 -8 -8 -8 -7 -7 -7 -7 -6 -6 -6 -6 -5 -5 -5 -5 -4 -4 -4 -4 -3 -3 -2 -1 -1 ----------- Run | Yrd Mat Min Mat Sto Mat Gar Mat Gar Mat Fac Gar Fac Gar Fac Gar Fac Gar Fac Gar Fac Gar Fac Gar Fac Gar Res Tes Res Acc Com Matter Collected 35813 | 292 415 158 1896 1344 . 951 913 805 309 . 1265 182 1469 529 2125 1091 1927 365 1871 556 2174 1774 1376 . 1092 3971 2570 1396 1220 1777 Remotely 10063 | . . . . . . . . . . . 106 . 466 . . 62 . . 131 . 394 1036 203 . 312 2534 1756 914 948 1201 Salvage Created 34276 | 101 774 107 1773 1192 . 800 1029 1161 572 . 1181 182 830 448 2010 1164 977 306 1600 411 2407 1611 1374 . 1299 3784 2640 1594 1489 1460 Parts 1586 | 6 48 8 90 64 . 55 45 80 34 . 48 6 46 21 89 34 52 14 62 25 112 80 64 . 59 168 129 61 67 19 Haulers Intercepted 17 | . 2 . 4 6 . . 1 . . . . . . . . 2 . . . . . . . . . 1 1 . . . Recyclers Shooed 37 | . 3 1 6 4 . . . . . . . 1 . 2 . 3 . 2 . 2 . . . . . 7 . . 3 3 Parts Field Recycled . | . . . . . . . . . . . . . . . . . . . . . . . . . . . . . . . Retrieved Matter . | . . . . . . . . . . . . . . . . . . . . . . . . . . . . . . . Parts Self-Destructed . | . . . . . . . . . . . . . . . . . . . . . . . . . . . . . . . Prevented . | . . . . . . . . . . . . . . . . . . . . . . . . . . . . . . . Parts Restored . | . . . . . . . . . . . . . . . . . . . . . . . . . . . . . . . Kills | -11 -10 -10 -9 -9 -8 -8 -8 -8 -8 -7 -7 -7 -7 -6 -6 -6 -6 -5 -5 -5 -5 -4 -4 -4 -4 -3 -3 -2 -1 -1 ------- Run | Yrd Mat Min Mat Sto Mat Gar Mat Gar Mat Fac Gar Fac Gar Fac Gar Fac Gar Fac Gar Fac Gar Fac Gar Fac Gar Res Tes Res Acc Com Combat Hostiles Destroyed 578 | . 16 6 34 16 . 23 17 34 11 . 28 . 23 4 39 19 25 7 22 8 31 36 25 . 23 50 30 13 22 16 Guns 429 | . 13 6 25 9 . 23 16 25 11 . 18 . 19 4 39 16 13 7 21 7 31 31 22 . 18 37 15 . . 3 Cannons 62 | . . . 4 1 . . . . . . 5 . . . . . 2 . 1 . . . . . . . 15 13 16 5 AOE 83 | . 3 . 5 6 . . . 9 . . 5 . 4 . . 3 10 . . 1 . 5 3 . 5 13 . . 4 7 Classes Destroyed 22 | 2 7 . 1 . . 1 1 1 . . . . 3 . 1 1 . . . . . . . . . 1 1 . 1 1 Worker 26 | . 2 1 2 . . . . . 1 . . . . 1 . 3 . 1 . 2 . 4 . . . 3 3 . 2 1 Builder 11 | . 2 . 1 1 . . 1 . . . . . . 1 . 1 . . . . . . . . . 2 2 . . . Tunneler 3 | 1 . . . . . . . . . . . . . . . . . . . . . . . . . 2 . . . . Hauler 18 | . 2 . 4 6 . . 1 . . . . . . . . 2 . . . . . . . . . 2 1 . . . Recycler 35 | 1 1 . 4 6 . . 1 . 1 . . 2 . 1 . 2 . . . 1 . . . . . 6 1 4 2 2 Operator 7 | . 2 . 1 2 . . . . . . . 1 . . . . . . . . . . . . . . . . 1 . Drone 3 | . . . . . . . . . . . . . . . . . . . . . . . . . . . . . 1 2 Watcher 11 | . 2 . 1 1 . . 1 . 1 . . . . . . 1 . . . . 1 . 1 . . . . . 1 1 Swarmer 151 | . 5 6 5 6 . 10 . 11 2 . 4 . 3 . 13 3 10 3 4 6 3 18 9 . 5 14 . . 11 . Cutter 14 | . . . . . . . . . . . . . 2 . . . 5 . . . 4 . 3 . . . . . . . Saboteur 4 | . . . . . . . . . . . . . . . . 1 . 1 1 . . . 1 . . . . . . . Grunt 211 | . 11 . 20 7 . 10 9 12 5 . 14 . 8 1 13 12 2 1 9 . 6 13 9 . 5 22 12 6 4 . Brawler 13 | . . . . . . . . . . . . . 1 . . 1 . 1 2 . 2 1 . . 2 1 1 1 . . Duelist 13 | . . . . . . . . 4 . . . . 2 . 1 2 . . 1 . 1 . . . . 1 . . 1 . Protector 1 | . . . . . . . . . . . . . . . . . . . . . . . . . . 1 . . . . Researcher 1 | . . . . . . . . . . . . . . . . . . . . . . . . . . . 1 . . . Sentry 67 | . . . 9 3 . . 6 4 4 . 7 . 2 2 5 . 4 1 5 . 5 1 1 . . 2 2 2 2 . Specialist 1 | . . . . . . . . . . . . . 1 . . . . . . . . . . . . . . . . . Hunter 31 | . . . . . . . 2 . . . 3 . . 1 2 . 2 . . . 3 . 2 . 4 2 6 2 2 . Programmer 51 | . . . . . . 3 . 3 . . . . 4 . 4 . 2 . . 1 7 3 . . 6 7 7 2 . 2 Behemoth 7 | . . . . . . . . . . . . . . . 1 . . . . 1 1 . 1 . 1 . . . 2 . Enhanced Q-Series 9 | . . . . . . . . . . . . . . . . . . . . . . . . . . . . . . 9 Combat Programmer 2 | . . . . . . . . . . . . . . . . . . . . . . . . . . . . . . 2 Guerrilla 2 | . . . . . . . . . . . . . . . . . . . . . . . . . . . 2 . . . Best Kill Streak 13 | 1 4 3 9 9 . 5 3 13 4 . 6 2 5 5 6 7 7 3 4 4 3 13 7 . 5 12 7 6 12 4 Combat Bots Only 13 | . 4 3 9 8 . 5 3 13 3 . 6 . 5 2 6 5 7 3 4 3 3 10 7 . 5 9 5 5 10 3 Max Kills in Single Turn 4 | 1 2 2 3 3 . 3 1 4 2 . 3 1 2 2 2 2 4 2 2 2 2 3 3 . 4 2 4 2 3 3 Gunslinging 2 | . . 1 . . . 2 . 1 . . . . . . 1 . . 1 1 1 . 1 1 . . 1 . . . . Exploded 4 | . 2 . 3 2 . . . 4 . . 3 . 2 . . 2 4 . . 1 . 3 3 . 4 2 . . 3 2 Melee . | . . . . . . . . . . . . . . . . . . . . . . . . . . . . . . . Uniques/NPCs Destroyed 1 | . . . . . . . . . . . . . . . . . . . . . . . . . . . . . . 1 MAIN.C Shell (-1/Command) Combat | -11 -10 -10 -9 -9 -8 -8 -8 -8 -8 -7 -7 -7 -7 -6 -6 -6 -6 -5 -5 -5 -5 -4 -4 -4 -4 -3 -3 -2 -1 -1 -------- Run | Yrd Mat Min Mat Sto Mat Gar Mat Gar Mat Fac Gar Fac Gar Fac Gar Fac Gar Fac Gar Fac Gar Fac Gar Fac Gar Res Tes Res Acc Com Hostile Shots Fired 3940 | . 57 42 160 47 . 84 84 140 25 5 325 19 159 29 370 76 182 17 94 13 208 206 97 . 164 236 109 81 202 709 Missed 1108 | . 16 14 31 14 . 24 18 37 4 1 93 8 55 12 104 21 57 7 26 4 32 48 36 . 49 81 32 29 59 196 Intercepted 8 | . . . . . . . . . . . . . . . . . . . . . . . . . . . . . . 8 Hits 2832 | . 41 28 129 33 . 60 66 103 21 4 232 11 104 17 266 55 125 10 68 9 176 158 61 . 115 155 77 52 143 513 Melee 51 | . . . . . . . . 8 . . . . 9 . . 6 17 . 1 . 4 1 . . . 5 . . . . Projectile 2781 | . 41 28 129 33 . 60 66 95 21 4 232 11 95 17 266 49 108 10 67 9 172 157 61 . 115 150 77 52 143 513 AOE 37 | . . . . . . . . . . . . . 1 . . . 2 . . . 2 . . . . . . . . 32 Critical Strikes 139 | . . . 4 3 . 4 . 7 1 1 2 . 5 1 1 4 7 . 3 1 16 10 . . 8 4 9 2 9 37 Actively Blocked 55 | . . . . . . . . . . . . . . . . . 2 . . . 5 1 . . 1 2 . . 7 37 Part Disruptions 6 | . . . . . . . . . . . . . . . . . . . . . . . . . . . . . . 6 Damage Taken 38532 | . 523 243 1656 397 . 861 969 1614 368 64 2201 100 1180 227 2229 1313 1799 311 1159 191 2718 1842 580 . 1257 2380 773 712 1503 9362 Core 3718 | . 138 56 160 40 . 63 114 214 55 . 243 11 126 . 120 13 182 . 30 44 157 140 31 . 90 114 44 14 79 1440 Absorbed by Shields 17142 | . . . . . . 5 . 39 . . 255 . 458 . 835 . 512 . 152 46 1164 1393 613 . 1318 1315 721 685 1441 6190 Reduced by Siege Mode 672 | . . . . . . . . . . . . . . . . . . . . . 160 50 10 . 119 180 55 . 35 63 Redirected to Shielding 35 | . 4 . 8 . . . . . . . . . . . . . . . . . . . . . . . . . . 23 Ignored by Resistances 1217 | . . . . . . . . . . . . . 51 11 155 . . . . . . . . . . . 45 15 . 940 Regen/Repaired (Parts) 2648 | . . . . 158 . . . . 86 . . 59 . . . 294 . . . . . . . . . 392 . 252 584 823 Core Remaining (%) 79 | 100 . 99 . 98 . . . . 3 . . . 75 . . . 84 . . . 74 . . . 75 . 86 98 . . Volleys Fired 1710 | 4 61 14 117 64 . 62 57 62 26 . 74 12 61 15 119 58 106 14 66 20 109 68 74 . 45 136 79 43 59 85 Largest 5 | 2 2 5 4 2 . 3 3 3 3 . 3 3 3 3 3 3 3 3 4 3 3 4 4 . 4 4 5 3 3 5 Hottest 314 | 60 50 100 97 63 . 69 79 79 71 . 145 81 136 91 91 81 175 101 196 101 101 134 129 . 128 228 230 120 200 314 Shots Fired 4225 | 8 119 34 267 114 . 157 161 158 78 . 206 21 161 39 334 157 201 30 189 42 285 185 219 . 162 421 191 53 64 169 Gun 3710 | 8 114 34 247 94 . 150 156 150 78 . 180 16 158 36 333 149 134 24 170 33 271 169 203 . 158 382 139 15 5 104 Cannon 315 | . . . 17 13 . 7 . . . . 24 4 . . . . 45 . 14 1 . . . . . 10 50 38 52 40 Launcher 88 | . 5 . 3 7 . . 5 8 . . 2 . 3 . . 6 3 . 1 1 1 4 1 . 3 12 . . 3 20 Special 112 | . . . . . . . . . . . . 1 . 3 1 2 19 6 4 7 13 12 15 . 1 17 2 . 4 5 Kinetic 3767 | 4 114 34 238 107 . 157 156 150 78 . 173 17 147 36 333 149 120 24 172 33 271 169 203 . 158 382 162 40 25 115 Thermal 257 | 4 . . 26 . . . . . . . 31 3 11 . . . 59 . 12 1 . . . . . 10 27 13 32 28 Explosive 84 | . 5 . 3 7 . . 1 8 . . 2 . 3 . . 6 3 . 1 1 1 4 1 . 3 12 . . 3 20 Electromagnetic 5 | . . . . . . . 4 . . . . . . . . . . . . . . . . . . . . . . 1 Robot Hit Streak 33 | 3 16 5 33 20 . 19 26 22 23 . 23 25 14 10 21 17 32 8 24 11 18 19 25 . 26 22 20 14 9 28 Robot Miss Streak 12 | 1 3 3 4 1 . 1 2 4 2 . 3 2 6 3 3 6 6 4 4 5 3 4 4 . 3 3 10 6 9 12 Penetration Max 3 | . . . 1 . . . . . . . . . 1 1 1 . 1 1 1 1 1 1 2 . 1 2 3 1 2 1 Secondary Targets 97 | . 3 2 3 1 . 5 . 10 . . 3 . 4 1 10 6 . 3 4 1 13 12 3 . 4 5 4 . . . Max Gunslinging Chain 2 | . 1 1 1 1 . 2 . 1 . . 1 . 1 1 1 1 . 2 1 1 1 2 1 . 1 1 1 . . . Shots Hit Robots 3022 | 6 89 21 197 75 . 111 130 117 57 . 162 12 116 24 254 122 152 24 135 26 202 119 137 . 121 286 123 39 37 128 Core Hits 1743 | 3 40 8 81 44 . 46 47 62 26 . 56 6 126 11 120 123 72 25 63 15 92 71 71 . 60 172 96 57 74 76 Critical Kills 86 | . . . . 1 . . . . . . . . . . 8 . . . 1 1 5 1 2 . 1 9 21 14 19 3 Critical Parts Destroyed 112 | . 1 . 1 . . . 1 1 . . 2 . . . 8 . 4 . 1 1 5 . 1 . 2 11 25 24 18 6 Critical Strikes 227 | . 1 . 4 1 . . 1 1 . . 11 . . . 17 . 13 . 2 2 10 2 4 . 3 20 46 42 38 9 Burn 6 | . . . 1 . . . . . . . 3 . . . . . 2 . . . . . . . . . . . . . Meltdown 3 | . . . . . . . . . . . . . . . . . . . . . . . . . . . . . 2 1 Destroy 202 | . 1 . 1 1 . . 1 1 . . 3 . . . 17 . 3 . 2 2 10 1 4 . 3 20 46 42 36 8 Blast 14 | . . . 2 . . . . . . . 5 . . . . . 6 . . . . 1 . . . . . . . . Smash 2 | . . . . . . . . . . . . . . . . . 2 . . . . . . . . . . . . . Melee Attacks 5 | . . . . . . . . . . . . . . . . . 5 . . . . . . . . . . . . . Impact 5 | . . . . . . . . . . . . . . . . . 5 . . . . . . . . . . . . . Slashing . | . . . . . . . . . . . . . . . . . . . . . . . . . . . . . . . Piercing . | . . . . . . . . . . . . . . . . . . . . . . . . . . . . . . . Sneak Attacks . | . . . . . . . . . . . . . . . . . . . . . . . . . . . . . . . Combat Hostiles . | . . . . . . . . . . . . . . . . . . . . . . . . . . . . . . . Follow-up Attacks . | . . . . . . . . . . . . . . . . . . . . . . . . . . . . . . . Damage Inflicted 80101 | 67 1149 248 3484 1979 . 1743 2153 2862 922 18 3210 233 2892 498 4402 3312 4245 533 3529 613 5043 3533 2796 . 3503 8869 2371 667 3092 12135 Guns 54362 | 67 887 215 2598 1089 . 1743 1979 1957 907 . 2363 214 2342 469 4402 2467 2101 486 3120 545 4911 2893 2575 . 3029 6750 2025 285 55 1888 Cannons 7526 | . . . 373 110 . . . . . . 571 . . . . . 908 . 409 . . 46 . . . . 346 382 1706 2675 Explosions 17683 | . 235 . 477 738 . . 174 905 . . 276 . 550 . . 808 1098 . . 53 132 594 221 . 474 2088 . . 1312 7548 Melee 138 | . . . . . . . . . . . . . . . . . 138 . . . . . . . . . . . . . Ramming 392 | . 27 33 36 42 . . . . 15 18 . 19 . 29 . 37 . 47 . 15 . . . . . 31 . . 19 24 Kinetic 55254 | 35 887 215 2545 1199 . 1743 1979 1957 907 . 2360 138 2132 469 4402 2467 2016 486 3187 545 4911 2939 2575 . 3029 6750 2277 627 383 2094 Thermal 10529 | 32 . . 426 . . . . . . . 574 76 210 . . . 993 . 342 . . . . . . . 94 40 2168 5574 Explosive 13663 | . 235 . 477 738 . . 49 905 . . 276 . 550 . . 808 1098 . . 53 132 594 221 . 474 2088 . . 522 4443 Electromagnetic 125 | . . . . . . . 125 . . . . . . . . . . . . . . . . . . . . . . . Impact 138 | . . . . . . . . . . . . . . . . . 138 . . . . . . . . . . . . . Slashing . | . . . . . . . . . . . . . . . . . . . . . . . . . . . . . . . Piercing . | . . . . . . . . . . . . . . . . . . . . . . . . . . . . . . . Highest Corruption 59 | . 3 3 2 . . 5 5 6 . . 13 13 20 . 9 9 1 . . . 13 14 14 . 5 13 18 2 . 59 Average Corruption 7 | . 2 3 2 . . 4 5 5 . . 4 13 16 . 9 9 1 . . . 7 13 14 . 4 12 10 1 . 14 Corruption Purged . | . . . . . . . . . . . . . . . . . . . . . . . . . . . . . . . Corruption Blocked . | . . . . . . . . . . . . . . . . . . . . . . . . . . . . . . . Effects 512 | . 30 27 9 . . 10 34 44 . . 14 18 46 . 36 6 1 . . . 48 38 41 . 7 32 35 2 . 34 Message Errors 121 | . 3 7 2 . . 3 10 12 . . 3 3 13 . 11 . . . . . 13 6 8 . 2 9 11 . . 5 Matter Fused 108 | . 9 7 2 . . 3 7 6 . . 2 4 7 . 8 1 . . . . 9 8 11 . 3 6 6 . . 9 Heat Flow Errors 55 | . 3 3 1 . . . 5 6 . . . 1 6 . 6 . . . . . 6 2 5 . . 4 2 . . 5 Energy Discharges 66 | . 6 4 1 . . 2 4 7 . . 5 4 3 . 1 2 1 . . . 8 2 5 . 1 5 3 1 . 1 Parts Rejected 6 | . . . . . . . . . . . . . . . . . . . . . 1 3 . . . 1 1 . . . Parts Fused 8 | . 2 . 1 . . . 1 . . . . 1 . . . . . . . . 2 . . . . 1 . . . . Data Loss (minor) 59 | . 6 3 1 . . 1 5 5 . . 4 1 5 . 4 1 . . . . 1 5 5 . 1 1 5 1 . 4 Data Loss (major) 21 | . . 1 . . . . . 4 . . . . 1 . 1 2 . . . . . 3 2 . . 2 4 . . 1 Misfires 15 | . 1 1 1 . . 1 1 . . . . 2 1 . 1 . . . . . 1 . 1 . . . 2 . . 2 Alerts 11 | . . 1 . . . . . 2 . . . . 1 . . . . . . . 2 2 . . . 1 1 . . 1 Misdirections 5 | . . . . . . . . . . . . 1 1 . . . . . . . . 1 1 . . 1 . . . . Weapon Failures 37 | . . . . . . . 1 2 . . . 1 8 . 4 . . . . . 5 6 3 . . 1 . . . 6 Overload Shots . | . . . . . . . . . . . . . . . . . . . . . . . . . . . . . . . Overflow Damage 747 | . . . 6 31 . . 9 5 4 . . . 3 . . . 155 . . . . . . . 60 . . . 85 389 Projectiles 214 | . . . . . . . . . . . . . . . . . 54 . . . . . . . . . . . . 160 Explosions 499 | . . . . 31 . . 9 5 . . . . 3 . . . 77 . . . . . . . 60 . . . 85 229 Melee 34 | . . . 6 . . . . . 4 . . . . . . . 24 . . . . . . . . . . . . . Knockbacks 48 | . . . 2 1 . . . . . 1 2 . . 1 . . 10 . . . . 1 . . . . 2 14 12 2 Impact 4 | . . . 1 1 . . . . . 1 . . . 1 . . . . . . . . . . . . . . . . Kinetic 41 | . . . 1 . . . . . . . 2 . . . . . 9 . . . . 1 . . . . 2 12 12 2 Secondary 3 | . . . . . . . . . . . . . . . . . 1 . . . . . . . . . . 2 . . Self-Inflicted Damage 235 | . . 15 . . . . . 38 . . . 5 . . . 11 . . . . . 20 . . 51 . . . 61 34 Shots 7 | . . . . . . . . 1 . . . . . . . 1 . . . . . 2 . . 1 . . . 1 1 Rammed 37 | . 9 4 4 6 . . . . . 1 . 2 . 2 . 2 . 1 . 1 . . . . . 2 . . 2 1 Targets Rammed 44 | . 12 5 4 7 . . . . 1 1 . 2 . 2 . 2 . 1 . 1 . . . . . 2 . . 2 2 Kicked . | . . . . . . . . . . . . . . . . . . . . . . . . . . . . . . . Crushed 7 | . 3 1 . 1 . . . . 1 . . . . . . . . . . . . . . . . . . . . 1 Highest Temperature 430 | . 177 271 235 39 . 17 227 269 15 . 78 111 325 . 285 250 430 27 311 54 258 331 348 . . 398 200 272 120 338 Average Temperature 70 | . 30 132 52 12 . 12 97 82 9 . 16 31 90 . 120 109 91 9 86 22 58 86 141 . . 66 43 35 30 66 Received Heat Transfer 6507 | . 288 . 666 180 . 267 342 486 162 54 606 33 171 96 452 357 113 36 256 18 339 217 83 . 88 321 63 52 62 699 Effects 13 | . . . 3 . . . . . . . . . 4 . . . 1 . . . . 1 2 . . 2 . . . . Shutdowns 1 | . . . . . . . . . . . . . . . . . . . . . . . . . . 1 . . . . Energy Bleed 1 | . . . . . . . . . . . . . . . . . . . . . . . . . . 1 . . . . Interference 9 | . . . 3 . . . . . . . . . 4 . . . . . . . . . 2 . . . . . . . Matter Decay 1 | . . . . . . . . . . . . . . . . . . . . . . 1 . . . . . . . . Short Circuit 1 | . . . . . . . . . . . . . . . . . 1 . . . . . . . . . . . . . Siege Activations 30 | . . . . . . . . . . . . . . . . . . . . . 5 3 2 . 7 7 4 . 1 1 Total Turns 567 | . . . . . . . . . . . . . . . . . . . . . 89 60 64 . 99 158 63 . 9 25 Longest Duration 51 | . . . . . . . . . . . . . . . . . . . . . 24 25 38 . 25 51 34 . 9 25 Martial Activations . | . . . . . . . . . . . . . . . . . . . . . . . . . . . . . . . Shielding Activations . | . . . . . . . . . . . . . . . . . . . . . . . . . . . . . . . Robots Disrupted . | . . . . . . . . . . . . . . . . . . . . . . . . . . . . . . . Combat Hostiles . | . . . . . . . . . . . . . . . . . . . . . . . . . . . . . . . Robots Corrupted 1 | . . . . . . . 1 . . . . . . . . . . . . . . . . . . . . . . . Combat Hostiles 1 | . . . . . . . 1 . . . . . . . . . . . . . . . . . . . . . . . Parts Fried . | . . . . . . . . . . . . . . . . . . . . . . . . . . . . . . . Impact Corruptions 3 | . . . 1 . . . . . 1 . . . . . . . 1 . . . . . . . . . . . . . Robots Melted 3 | . . . . . . . . . . . . . . . . . . . . . . . . . . . . . 2 1 Combat Hostiles 3 | . . . . . . . . . . . . . . . . . . . . . . . . . . . . . 2 1 Parts Melted 8 | . 1 . 1 . . . . . . . 4 . . . . . . . . . . . . . . . . . 1 1 Heat Transferred 9780 | 75 . . 941 . . . . . . . 1600 175 475 . . . 1701 . 370 . . . . . . . 74 37 785 3547 Parts Sabotaged 7 | . . . . . . . . . . . . . . . . . . . 3 . . . . . . 4 . . . . Parts Stolen . | . . . . . . . . . . . . . . . . . . . . . . . . . . . . . . . Parts Stripped . | . . . . . . . . . . . . . . . . . . . . . . . . . . . . . . . Power Chain Reactions . | . . . . . . . . . . . . . . . . . . . . . . . . . . . . . . . Alert | -11 -10 -10 -9 -9 -8 -8 -8 -8 -8 -7 -7 -7 -7 -6 -6 -6 -6 -5 -5 -5 -5 -4 -4 -4 -4 -3 -3 -2 -1 -1 ------- Run | Yrd Mat Min Mat Sto Mat Gar Mat Gar Mat Fac Gar Fac Gar Fac Gar Fac Gar Fac Gar Fac Gar Fac Gar Fac Gar Res Tes Res Acc Com Maximum Alert Level 5 | . . . . 1 . 3 2 4 2 1 4 2 3 2 5 4 5 4 4 3 4 3 4 3 3 3 2 1 2 1 Low Security (%) 25 | 100 100 100 100 92 100 5 . . . 49 7 . . . . . . . . . . . . . . . 5 72 10 60 Level 1 8 | . . . . 7 . 21 . 4 . 50 5 34 35 . . . . . . . . . . . . 1 46 27 58 39 Level 2 25 | . . . . . . 31 100 23 100 . 33 65 31 100 20 . . . . . 27 52 4 . 33 80 47 . 30 . Level 3 22 | . . . . . . 42 . 38 . . 41 . 32 . 37 90 43 17 23 100 29 47 34 100 66 17 . . . . Level 4 16 | . . . . . . . . 32 . . 11 . . . 29 9 42 82 76 . 43 . 61 . . . . . . . Level 5 1 | . . . . . . . . . . . . . . . 12 . 14 . . . . . . . . . . . . . High Security . | . . . . . . . . . . . . . . . . . . . . . . . . . . . . . . . Max Security . | . . . . . . . . . . . . . . . . . . . . . . . . . . . . . . . Sterilizations 1 | . . . 1 . . . . . . . . . . . . . . . . . . . . . . . . . . . Peak Influence 2047 | 5 155 52 191 245 55 1089 602 1385 684 262 1237 648 1001 671 1841 1128 2047 1217 1502 855 1449 972 1430 750 1051 733 480 361 497 310 Initial 1074 | . 3 34 . 50 55 29 530 375 674 262 90 648 204 525 457 966 772 1074 782 788 530 760 674 750 518 591 351 218 175 291 Average 627 | 1 73 7 85 85 50 640 526 909 569 201 712 490 566 574 1064 945 1234 1143 1255 768 987 696 1146 748 785 585 364 171 335 148 Influence Increases 20549 | 10 544 145 1048 822 . 1190 556 1040 361 7 1267 72 827 378 1464 570 1615 380 740 352 1169 976 976 . 573 1268 827 495 659 218 Destroy 0b10 Robot/C 10690 | . 320 120 680 380 . 660 340 680 220 . 585 . 480 195 645 345 585 180 360 135 630 540 435 . 345 735 465 225 315 90 Destroy 0b10 Robot/NC 604 | 10 55 5 65 85 . . 20 5 15 . . 12 . 20 8 40 16 12 12 28 28 16 12 . . 60 28 16 28 8 Destroy Leader 1558 | . 98 20 200 106 . 30 104 50 62 . 38 . 40 66 40 70 40 34 32 24 48 72 32 . 64 122 42 48 58 18 Allied During Kill 903 | . . . . 91 . 100 . . . . 17 . 32 80 25 28 183 42 4 27 105 11 84 . . 30 . 26 . 18 Successful Hack 294 | . 19 . 11 16 . . . 14 16 7 36 21 22 . 22 . 11 . 11 4 . . 11 . . 27 4 . 39 3 Disable Machine 573 | . . . 45 60 . . 30 15 15 . . . . 12 . 12 . 36 36 12 12 72 12 . . 24 132 12 24 12 Anti-Garrison Action 3151 | . . . . . . 350 . 250 . . 476 . 189 . 490 . 528 . 189 . 264 113 264 . 38 . . . . . Destroy Structure 1393 | . 37 . 32 69 . 35 17 26 3 . 7 3 16 5 6 27 48 76 24 122 10 56 42 . 78 210 96 108 171 69 Lose Combat Pursuer 1383 | . 15 . 15 15 . 15 45 . 30 . 108 36 48 . 228 48 204 . 72 . 72 96 84 . 48 60 60 60 24 . Influence Decreases 20274 | 5 461 233 929 808 88 146 1067 233 1169 455 159 1017 118 726 276 1307 672 1309 356 1096 478 1461 510 690 262 1695 1062 591 496 399 Entered New Map 9921 | . 2 54 . 69 78 16 559 203 711 315 39 589 88 476 196 875 332 973 336 714 228 689 290 680 222 460 273 171 118 165 Time Decay 6834 | 5 459 159 619 600 10 . 498 . 458 130 . 238 . 150 . 302 . 286 . 302 . 482 . 10 . 650 514 380 368 214 Lost Part 550 | . . 20 30 10 . 10 10 30 . . 80 . 30 . 40 20 120 10 . . 30 40 20 . 20 20 . . 10 . Lost Ally 1659 | . . . . 49 . 120 . . . 10 40 40 . 100 40 110 220 40 20 80 220 100 200 . 20 190 . 40 . 20 Purge Threat 1310 | . . . 280 80 . . . . . . . 150 . . . . . . . . . 150 . . . 375 275 . . . Squads Dispatched 71 | . 5 . 6 2 . . 3 . 2 . . 2 . 5 . 6 . 5 . 3 . 9 . . . 11 4 4 3 1 Investigation 10 | . 2 . 2 1 . . 2 . . . . . . . . 1 . 1 . 1 . . . . . . . . . . Extermination 14 | . . . . . . . . . . . . 1 . . . . . . . 1 . 2 . . . 4 2 2 1 1 Reinforcement 28 | . 3 . 4 1 . . . . 2 . . . . 2 . 2 . 1 . . . 2 . . . 5 2 2 2 . Assault 10 | . . . . . . . . . . . . . . . . 1 . 3 . 1 . 3 . . . 2 . . . . Garrison 9 | . . . . . . . 1 . . . . 1 . 3 . 2 . . . . . 2 . . . . . . . . Intercept . | . . . . . . . . . . . . . . . . . . . . . . . . . . . . . . . Searches Triggered . | . . . . . . . . . . . . . . . . . . . . . . . . . . . . . . . Construction Impeded 5 | . . . . . . . . . . . . . . 1 . . . 1 . . . . . . . . 1 . 2 . Haulers Reinforced 2 | . . . . . . . . . . . . . . . . 1 . . . . . . . . . 1 . . . . Active Scanning Responses . | . . . . . . . . . . . . . . . . . . . . . . . . . . . . . . . Cargo Convoy Interrupts . | . . . . . . . . . . . . . . . . . . . . . . . . . . . . . . . Alert ID Control Effect 18 | . . . . . . . . . . . . . . . . . 1 2 . 1 3 2 4 . . 5 . . . . Stealth | -11 -10 -10 -9 -9 -8 -8 -8 -8 -8 -7 -7 -7 -7 -6 -6 -6 -6 -5 -5 -5 -5 -4 -4 -4 -4 -3 -3 -2 -1 -1 --------- Run | Yrd Mat Min Mat Sto Mat Gar Mat Gar Mat Fac Gar Fac Gar Fac Gar Fac Gar Fac Gar Fac Gar Fac Gar Fac Gar Res Tes Res Acc Com Distress Signals 39 | . 2 . 4 . . . 3 . 2 . 4 . . . . 2 1 1 . . 1 4 1 . . 7 3 1 . 3 Communications Jammed 76 | . . . . . . . . . . . . . . . . 5 . . . . . . . . . 33 4 1 33 . Distress Signals 59 | . . . . . . . . . . . . . . . . 5 . . . . . . . . . 26 3 1 24 . Times Spotted 924 | . 34 6 47 24 . 34 33 46 18 2 37 5 35 13 52 25 43 22 30 14 52 66 46 . 24 81 42 20 33 40 Peak Tracking Total 11 | . 5 3 7 5 . 6 6 8 4 2 9 3 5 5 9 6 5 5 7 4 7 11 6 . 5 8 7 7 9 10 Tactical Retreats 65 | . 1 . 1 1 . 1 3 . 2 . 3 1 2 . 7 3 9 . 4 . 3 7 6 . 2 4 2 1 2 . Traps | -11 -10 -10 -9 -9 -8 -8 -8 -8 -8 -7 -7 -7 -7 -6 -6 -6 -6 -5 -5 -5 -5 -4 -4 -4 -4 -3 -3 -2 -1 -1 ------- Run | Yrd Mat Min Mat Sto Mat Gar Mat Gar Mat Fac Gar Fac Gar Fac Gar Fac Gar Fac Gar Fac Gar Fac Gar Fac Gar Res Tes Res Acc Com Traps Triggered 50 | . 4 . 1 . . 4 . 5 1 . 2 . 8 . 4 1 7 2 2 . 2 . 4 . 3 . . . . . Indirectly . | . . . . . . . . . . . . . . . . . . . . . . . . . . . . . . . Trap Hack Attempts . | . . . . . . . . . . . . . . . . . . . . . . . . . . . . . . . Triggered . | . . . . . . . . . . . . . . . . . . . . . . . . . . . . . . . Disarmed . | . . . . . . . . . . . . . . . . . . . . . . . . . . . . . . . Reprogrammed . | . . . . . . . . . . . . . . . . . . . . . . . . . . . . . . . Reused . | . . . . . . . . . . . . . . . . . . . . . . . . . . . . . . . Traps Extracted . | . . . . . . . . . . . . . . . . . . . . . . . . . . . . . . . Installed . | . . . . . . . . . . . . . . . . . . . . . . . . . . . . . . . Triggered . | . . . . . . . . . . . . . . . . . . . . . . . . . . . . . . . Machines | -11 -10 -10 -9 -9 -8 -8 -8 -8 -8 -7 -7 -7 -7 -6 -6 -6 -6 -5 -5 -5 -5 -4 -4 -4 -4 -3 -3 -2 -1 -1 ---------- Run | Yrd Mat Min Mat Sto Mat Gar Mat Gar Mat Fac Gar Fac Gar Fac Gar Fac Gar Fac Gar Fac Gar Fac Gar Fac Gar Res Tes Res Acc Com Machines Disabled 82 | . . . 3 4 . 4 2 3 1 . 3 . 2 1 5 1 8 3 7 1 4 7 5 . 1 2 11 1 2 1 Max in Single Turn 2 | . . . 1 1 . 1 1 1 1 . 1 . 1 . 1 . 1 . 2 . 1 1 1 . 1 1 1 1 1 1 Garrison Access 4 | . . . . 1 . . . . . . . . . . . . . . . . . 1 . . . 1 1 . . . Garrison Relay 32 | . . . . . . 4 . 2 . . 3 . 2 . 5 . 5 . 3 . 3 . 4 . 1 . . . . . Phase Generator 4 | . . . . . . . . 1 . . . . . . . . 1 . . . 1 . . . 1 . . . . . Energy Cycler 1 | . . . . . . . . . . . . . . . . . . . . . . . . . . . . . 1 . Machines Repaired . | . . . . . . . . . . . . . . . . . . . . . . . . . . . . . . . Machines Dismantled . | . . . . . . . . . . . . . . . . . . . . . . . . . . . . . . . Machines Sabotaged . | . . . . . . . . . . . . . . . . . . . . . . . . . . . . . . . Overloaded Fab Kills . | . . . . . . . . . . . . . . . . . . . . . . . . . . . . . . . Hacking | -11 -10 -10 -9 -9 -8 -8 -8 -8 -8 -7 -7 -7 -7 -6 -6 -6 -6 -5 -5 -5 -5 -4 -4 -4 -4 -3 -3 -2 -1 -1 --------- Run | Yrd Mat Min Mat Sto Mat Gar Mat Gar Mat Fac Gar Fac Gar Fac Gar Fac Gar Fac Gar Fac Gar Fac Gar Fac Gar Res Tes Res Acc Com Machines Accessed 94 | . 5 . 9 14 1 4 4 2 6 2 4 5 2 1 3 2 4 2 2 3 2 4 1 1 . 5 3 . 2 1 Terminals 67 | . 5 . 7 11 . 4 1 2 4 . 4 3 2 . 3 1 4 . 2 2 2 3 1 . . 3 1 . 1 1 Fabricators 1 | . . . . . . . . . . 1 . . . . . . . . . . . . . . . . . . . . Repair Stations 6 | . . . 1 2 . . . . 1 . . 1 . . . . . . . . . . . . . 1 . . . . Recycling Units 1 | . . . . . . . 1 . . . . . . . . . . . . . . . . . . . . . . . Scanalyzers 6 | . . . 1 . . . 1 . 1 . . . . . . . . 1 . . . . . . . . 1 . 1 . Garrison Access 13 | . . . . 1 1 . 1 . . 1 . 1 . 1 . 1 . 1 . 1 . 1 . 1 . 1 1 . . . Total Hacks 184 | . 9 . 19 26 2 9 8 5 13 6 6 13 6 1 7 5 7 3 3 6 5 5 1 1 . 7 7 . 3 1 Successful 84 | . 6 . 11 14 1 . 5 1 9 4 4 5 2 1 2 1 1 1 1 2 . 1 1 1 . 4 3 . 2 1 Failed 98 | . 3 . 8 12 1 9 2 4 4 2 2 8 4 . 5 4 6 2 2 4 5 4 . . . 3 3 . 1 . Catastrophic 24 | . . . 1 2 . 3 . . . . 1 3 2 . 1 . 3 . 1 3 2 . . . . 2 . . . . Database Lockouts 2 | . . . . . . . 1 . . . . . . . . . . . . . . . . . . . 1 . . . Manual 75 | . 10 . 15 8 . 3 2 1 8 2 . 3 3 . 4 4 1 . 1 1 . 4 . . . 5 . . . . Terminals 136 | . 9 . 15 21 . 9 2 5 9 . 6 9 6 . 7 4 7 . 3 5 5 4 1 . . 5 2 . 1 1 Fabricators 5 | . . . . . . . . . . 5 . . . . . . . . . . . . . . . . . . . . Repair Stations 11 | . . . 1 4 . . . . 2 . . 3 . . . . . . . . . . . . . 1 . . . . Recycling Units 1 | . . . . . . . 1 . . . . . . . . . . . . . . . . . . . . . . . Scanalyzers 17 | . . . 3 . . . 4 . 2 . . . . . . . . 2 . . . . . . . . 4 . 2 . Garrison Access 14 | . . . . 1 2 . 1 . . 1 . 1 . 1 . 1 . 1 . 1 . 1 . 1 . 1 1 . . . Terminal Hacks 27 | . 1 . 2 8 . . . 1 1 . 4 1 1 . 2 . 1 . 1 . . . 1 . . 1 . . 1 1 Part Schematic 1 | . 1 . . . . . . . . . . . . . . . . . . . . . . . . . . . . . Open Door 7 | . . . . 5 . . . . . . 1 . . . . . . . . . . . . . . . . . . 1 Branch Access Points 2 | . . . . . . . . . . . . . . . . . . . . . . . . . . 1 . . 1 . Emergency Access Points 4 | . . . . . . . . . . . 1 . 1 . 1 . . . 1 . . . . . . . . . . . Unreport Threat 6 | . . . 2 3 . . . . . . . 1 . . . . . . . . . . . . . . . . . . Hauler Manifests 1 | . . . . . . . . . 1 . . . . . . . . . . . . . . . . . . . . . Garrison Registry 2 | . . . . . . . . 1 . . 1 . . . . . . . . . . . . . . . . . . . Patrol Navigation 4 | . . . . . . . . . . . 1 . . . 1 . 1 . . . . . 1 . . . . . . . Fabricator Hacks 2 | . . . . . . . . . . 2 . . . . . . . . . . . . . . . . . . . . Network Status 1 | . . . . . . . . . . 1 . . . . . . . . . . . . . . . . . . . . Build 1 | . . . . . . . . . . 1 . . . . . . . . . . . . . . . . . . . . Repair Station Hacks 6 | . . . . 2 . . . . 2 . . 2 . . . . . . . . . . . . . . . . . . Scan Component 3 | . . . . 1 . . . . 1 . . 1 . . . . . . . . . . . . . . . . . . Repair 3 | . . . . 1 . . . . 1 . . 1 . . . . . . . . . . . . . . . . . . Recycling Unit Hacks 1 | . . . . . . . 1 . . . . . . . . . . . . . . . . . . . . . . . Retrieve Components 1 | . . . . . . . 1 . . . . . . . . . . . . . . . . . . . . . . . Scanalyzer 10 | . . . 3 . . . 2 . 2 . . . . . . . . . . . . . . . . . 2 . 1 . Insert Component 1 | . . . . . . . . . . . . . . . . . . . . . . . . . . . 1 . . . Retrieve Study 9 | . . . 3 . . . 2 . 2 . . . . . . . . . . . . . . . . . 1 . 1 . Garrison Access Hacks 13 | . . . . 1 1 . 1 . . 1 . 1 . 1 . 1 . 1 . 1 . 1 . 1 . 1 1 . . . Unlock Access 10 | . . . . . 1 . 1 . . 1 . 1 . 1 . 1 . 1 . 1 . 1 . 1 . . . . . . Seal Access 3 | . . . . 1 . . . . . . . . . . . . . . . . . . . . . 1 1 . . . Unauthorized Hacks 25 | . 5 . 6 3 . . 1 . 4 1 . 1 1 . . . . . . 1 . . . . . 2 . . . . Terminals 24 | . 5 . 6 3 . . 1 . 4 . . 1 1 . . . . . . 1 . . . . . 2 . . . . Assimilate 2 | . . . 1 1 . . . . . . . . . . . . . . . . . . . . . . . . . . Botnet 20 | . 5 . 3 2 . . 1 . 4 . . 1 1 . . . . . . 1 . . . . . 2 . . . . Skim 2 | . . . 2 . . . . . . . . . . . . . . . . . . . . . . . . . . . Fabricators 1 | . . . . . . . . . . 1 . . . . . . . . . . . . . . . . . . . . Prioritize 1 | . . . . . . . . . . 1 . . . . . . . . . . . . . . . . . . . . Repair Stations . | . . . . . . . . . . . . . . . . . . . . . . . . . . . . . . . Recycling Units . | . . . . . . . . . . . . . . . . . . . . . . . . . . . . . . . Scanalyzers . | . . . . . . . . . . . . . . . . . . . . . . . . . . . . . . . Garrison Access . | . . . . . . . . . . . . . . . . . . . . . . . . . . . . . . . Data Cores Recovered 1 | . . . . . . . . . . . . 1 . . . . . . . . . . . . . . . . . . Used . | . . . . . . . . . . . . . . . . . . . . . . . . . . . . . . . Hacking Detections 71 | . 4 . 6 8 1 4 2 2 5 2 3 5 2 . 3 2 4 1 2 2 2 4 1 . . 3 . . 2 1 Full Trace Events 7 | . . . . 1 . 1 1 1 . . 1 . 1 . . . . . . 1 . . . . . . . . . . Feedback Events 1 | . . . . . . . . 1 . . . . . . . . . . . . . . . . . . . . . . Corruption 1 | . . . . . . . . 1 . . . . . . . . . . . . . . . . . . . . . . Feedback Blocked . | . . . . . . . . . . . . . . . . . . . . . . . . . . . . . . . Robot Schematics Acquired 2 | . . . . . . . . . . . . . . . . . . . . . . . . . . . 2 . . . Robots Built . | . . . . . . . . . . . . . . . . . . . . . . . . . . . . . . . Authchips . | . . . . . . . . . . . . . . . . . . . . . . . . . . . . . . . Time . | . . . . . . . . . . . . . . . . . . . . . . . . . . . . . . . Total Robot Build Rating . | . . . . . . . . . . . . . . . . . . . . . . . . . . . . . . . Part Schematics Acquired 3 | . 1 . . . . . . . . . . . . . . . . . . . . . . . . . 2 . . . Parts Built 2 | . . . . . . . . . . 2 . . . . . . . . . . . . . . . . . . . . Authchips . | . . . . . . . . . . . . . . . . . . . . . . . . . . . . . . . Time 106 | . . . . . . . . . . 106 . . . . . . . . . . . . . . . . . . . . Total Part Build Rating 12 | . . . . . . . . . . 12 . . . . . . . . . . . . . . . . . . . . Part Studies Acquired 9 | . . . 3 . . . 2 . 2 . . . . . . . . . . . . . . . . . 1 . 1 . Parts Repaired 3 | . . . . 1 . . . . 1 . . 1 . . . . . . . . . . . . . . . . . . Time 117 | . . . . 44 . . . . 51 . . 22 . . . . . . . . . . . . . . . . . . Parts Recycled . | . . . . . . . . . . . . . . . . . . . . . . . . . . . . . . . Recycled Matter . | . . . . . . . . . . . . . . . . . . . . . . . . . . . . . . . Retrieved Matter . | . . . . . . . . . . . . . . . . . . . . . . . . . . . . . . . Retrieved Components 4 | . . . . . . . 4 . . . . . . . . . . . . . . . . . . . . . . . Parts Scanalyzed . | . . . . . . . . . . . . . . . . . . . . . . . . . . . . . . . Part Schematics Acquired . | . . . . . . . . . . . . . . . . . . . . . . . . . . . . . . . Parts Damaged . | . . . . . . . . . . . . . . . . . . . . . . . . . . . . . . . Bothacking | -11 -10 -10 -9 -9 -8 -8 -8 -8 -8 -7 -7 -7 -7 -6 -6 -6 -6 -5 -5 -5 -5 -4 -4 -4 -4 -3 -3 -2 -1 -1 ------------ Run | Yrd Mat Min Mat Sto Mat Gar Mat Gar Mat Fac Gar Fac Gar Fac Gar Fac Gar Fac Gar Fac Gar Fac Gar Fac Gar Res Tes Res Acc Com Used RIF Installer 12 | . . . . . . 1 . 1 . . 1 . 1 . 1 . 1 . 2 . 2 . 1 . 1 . . . . . Coupler Efficiency 1 | . . . . . . . . . . . . . . . . . . . . . 1 . . . . . . . . . Code Merge 1 | . . . . . . . . . . . . . . . . . 1 . . . . . . . . . . . . . Command Fork 1 | . . . . . . . . . . . . . . . . . . . . . . . 1 . . . . . . . Threat Obfuscator 1 | . . . . . . . . . . . 1 . . . . . . . . . . . . . . . . . . . Zone Cloak 2 | . . . . . . . . . . . . . . . 1 . . . 1 . . . . . . . . . . . Robot Detection 1 | . . . . . . . . 1 . . . . . . . . . . . . . . . . . . . . . . Watcher Feeds 1 | . . . . . . . . . . . . . . . . . . . 1 . . . . . . . . . . . Patrol Navigation 1 | . . . . . . . . . . . . . . . . . . . . . . . . . 1 . . . . . Alert ID Control 1 | . . . . . . . . . . . . . 1 . . . . . . . . . . . . . . . . . Structural Interface 1 | . . . . . . . 1 . . . . . . . . . . . . . . . . . . . . . . . Program Shield 1 | . . . . . . . . . . . . . . . . . . . . . 1 . . . . . . . . . Robots Hacked 61 | . . . . . . . . . . . . 1 . 1 1 1 9 3 1 4 7 9 7 . 1 11 1 . 2 2 Non-combat 12 | . . . . . . . . . . . . . . . . 1 . . . 1 . 2 . . . 5 1 . 2 . Combat 49 | . . . . . . . . . . . . 1 . 1 1 . 9 3 1 3 7 7 7 . 1 6 . . . 2 Robot Hacks Applied 72 | . . . . . . . . . . . . 1 . 2 1 1 11 5 1 5 7 11 7 . 1 13 2 . 2 2 parse_system 3 | . . . . . . . . . . . . . . . . . 3 . . . . . . . . . . . . . drop_inventory 2 | . . . . . . . . . . . . . . . . . . . . 1 . . . . . 1 . . . . purge_threat 6 | . . . . . . . . . . . . . . . . . . . . . . 1 . . . 3 2 . . . map_route 5 | . . . . . . . . . . . . . . . . . . . . . . 1 . . . 2 . . 2 . find_garrison 6 | . . . . . . . . . . . . 1 . 1 . . . 1 . 1 . 2 . . . . . . . . amplify_resonance 5 | . . . . . . . . . . . . . . . . . . 2 1 . 1 1 . . . . . . . . disable_weapons 1 | . . . . . . . . . . . . . . . . . . 1 . . . . . . . . . . . . formatsys_low 2 | . . . . . . . . . . . . . . . . 1 . . . . . . . . . 1 . . . . formatsys_high 42 | . . . . . . . . . . . . . . 1 1 . 8 1 . 3 6 6 7 . 1 6 . . . 2 Relay Couplers Released 123 | . . . . . . 14 . 10 . . 10 . 10 . 21 . 17 . 9 . 11 3 14 . 3 1 . . . . Machine Destruction 120 | . . . . . . 14 . 10 . . 10 . 10 . 21 . 17 . 9 . 11 . 14 . 3 1 . . . . Programmers 3 | . . . . . . . . . . . . . . . . . . . . . . 3 . . . . . . . . Attached 15 | . . . . . . . . . . . . 1 . 1 1 1 3 . 1 . . 3 1 . . 2 . . . 1 Merged Code Value 93 | . . . . . . . . . . . . . . . . . 37 . 7 . 19 7 17 . 6 . . . . . Fabnet Peak Effective % . | . . . . . . . . . . . . . . . . . . . . . . . . . . . . . . . Robots Rewired 19 | . . . . . . . . . . . 6 . . . . . 4 . 2 . 4 . 3 . . . . . . . Allies Hacked 3 | . . . . . . . . . . . . . . . . . . 1 . . . . . . . . . . . 2 Hacks Repelled . | . . . . . . . . . . . . . . . . . . . . . . . . . . . . . . . Allies | -11 -10 -10 -9 -9 -8 -8 -8 -8 -8 -7 -7 -7 -7 -6 -6 -6 -6 -5 -5 -5 -5 -4 -4 -4 -4 -3 -3 -2 -1 -1 -------- Run | Yrd Mat Min Mat Sto Mat Gar Mat Gar Mat Fac Gar Fac Gar Fac Gar Fac Gar Fac Gar Fac Gar Fac Gar Fac Gar Res Tes Res Acc Com Total Allies 103 | . . 1 . 10 . . . . . . 6 . 1 5 2 5 15 1 2 6 10 6 13 . 1 11 . 2 1 5 Largest Group 10 | . . 1 . 10 7 7 . . . . 3 3 1 6 1 5 4 2 2 3 5 2 5 . 1 3 . 1 . 3 Highest-Rated Group 460 | . . 31 . 88 64 64 . . . . 84 72 142 353 80 226 398 142 232 167 301 165 248 . 49 206 . 82 . 460 Highest-Rated Ally 206 | . . 31 . 16 16 16 . . . . 39 24 142 142 80 51 119 119 116 109 68 142 64 . 49 142 . 82 . 206 Total Orders 32 | . . . . . . . . . . 2 . . . . . 1 2 . . . 5 . 2 . . 18 . . . 2 STAY 12 | . . . . . . . . . . . . . . . . . 1 . . . 3 . 1 . . 5 . . . 2 FOLLOW 8 | . . . . . . . . . . . . . . . . . 1 . . . 2 . 1 . . 4 . . . . AID 2 | . . . . . . . . . . . . . . . . 1 . . . . . . . . . 1 . . . . EXPLORE 9 | . . . . . . . . . . 2 . . . . . . . . . . . . . . . 7 . . . . RETURN 1 | . . . . . . . . . . . . . . . . . . . . . . . . . . 1 . . . . Ally Attacks 625 | . . . . 25 . 83 . . . . 16 6 14 52 20 27 76 30 5 21 55 13 88 . 2 37 . 5 . 50 Total Damage 18597 | . . . . 211 . 627 . . . . 275 182 1021 1969 779 717 2275 1423 339 402 1741 640 2822 . 46 1308 . 119 . 1701 Kills 119 | . . . . 4 . 10 . . . . 5 1 9 11 4 5 19 9 2 6 14 2 9 . . 5 . 2 . 2 Allies Corrupted 4 | . . . . . . . . . . . . . . . . . . 1 . . . 1 . . . 1 . . . 1 Allies Melted 5 | . . . . . . . . . . . . . . . . . . . . 1 1 1 . . . . . . . 2 X0-1V1 Amusement Gains 227 | . 16 . 10 . 5 . . 50 10 . 10 10 20 . 26 . . . . . . . . . . . . . 10 60 Good Acts 241 | . 3 6 18 7 1 2 5 10 1 . 16 2 12 1 15 9 18 2 13 7 11 9 21 . 9 15 7 7 5 9 Bad Acts 69 | . 1 . 4 1 . 7 3 1 1 . 6 1 2 . 5 . 1 . 4 . 5 4 . . 2 5 6 . 1 9 Intel | -11 -10 -10 -9 -9 -8 -8 -8 -8 -8 -7 -7 -7 -7 -6 -6 -6 -6 -5 -5 -5 -5 -4 -4 -4 -4 -3 -3 -2 -1 -1 ------- Run | Yrd Mat Min Mat Sto Mat Gar Mat Gar Mat Fac Gar Fac Gar Fac Gar Fac Gar Fac Gar Fac Gar Fac Gar Fac Gar Res Tes Res Acc Com Active Infowar (turns) 8397 | 1 406 . . . . . . . . 61 2372 503 968 88 185 80 . 423 167 530 . 53 124 . . 825 452 240 756 163 Optics 4327 | . . . . . . . . . . 61 2372 503 968 . . . . 423 . . . . . . . . . . . . Sensors 1 | . . . . . . . . . . . . . . . . . . . . . . 1 . . . . . . . . Seismic 407 | 1 406 . . . . . . . . . . . . . . . . . . . . . . . . . . . . . Jamming 3661 | . . . . . . . . . . . . . . 88 185 80 . . 167 530 . 52 124 . . 824 452 240 756 163 ECM 1 | . . . . . . . . . . . . . . . . . . . . . . . . . . 1 . . . . Robot Analysis Total . | . . . . . . . . . . . . . . . . . . . . . . . . . . . . . . . Derelict Logs Recovered 1 | . . 1 . . . . . . . . . . . . . . . . . . . . . . . . . . . . Drone Launches 10 | . . . . . . . . . . 2 . . . . . . . . . . . . . . . 8 . . . . Drone Recoveries 6 | . . . . . . . . . . . . . . . . . . . . . . . . . . 6 . . . . Exploration | -11 -10 -10 -9 -9 -8 -8 -8 -8 -8 -7 -7 -7 -7 -6 -6 -6 -6 -5 -5 -5 -5 -4 -4 -4 -4 -3 -3 -2 -1 -1 ------------- Run | Yrd Mat Min Mat Sto Mat Gar Mat Gar Mat Fac Gar Fac Gar Fac Gar Fac Gar Fac Gar Fac Gar Fac Gar Fac Gar Res Tes Res Acc Com Turns Passed 39888 | 93 2530 1163 2632 2060 38 1691 1336 1587 1155 266 2372 503 1235 311 2275 663 2294 637 1793 674 2026 1247 1883 22 728 2391 1404 889 859 1131 Spaces Moved 16778 | 57 944 631 1065 763 15 606 487 645 447 113 937 288 582 118 807 225 1008 370 904 349 926 583 946 14 297 982 561 411 378 319 Core 28 | 28 . . . . . . . . . . . . . . . . . . . . . . . . . . . . . . Treads 14692 | 29 944 158 714 763 15 606 487 645 447 113 835 . . 50 807 225 814 370 904 349 926 583 946 14 297 982 561 411 378 319 Legs 60 | . . . . . . . . . . . . . . . . . 60 . . . . . . . . . . . . . Wheels 1998 | . . 473 351 . . . . . . . 102 288 582 68 . . 134 . . . . . . . . . . . . . Hover . | . . . . . . . . . . . . . . . . . . . . . . . . . . . . . . . Flight . | . . . . . . . . . . . . . . . . . . . . . . . . . . . . . . . Fastest Speed 50 | 50 160 140 140 213 240 240 200 200 213 222 145 145 145 145 164 160 145 156 156 163 160 155 155 155 155 163 168 168 163 146 Average Speed 187 | 105 239 171 197 229 240 240 205 203 220 222 201 145 146 194 227 184 181 156 158 163 164 158 155 155 157 173 177 168 166 217 Slowest Speed 330 | 160 240 240 226 240 240 240 240 213 229 222 222 160 160 244 244 220 330 156 221 163 166 160 155 155 160 256 262 247 168 330 Overloaded Moves . | . . . . . . . . . . . . . . . . . . . . . . . . . . . . . . . Propulsion Burnouts . | . . . . . . . . . . . . . . . . . . . . . . . . . . . . . . . Robots Hopped . | . . . . . . . . . . . . . . . . . . . . . . . . . . . . . . . Potential Cave-ins . | . . . . . . . . . . . . . . . . . . . . . . . . . . . . . . . Cave-ins Triggered . | . . . . . . . . . . . . . . . . . . . . . . . . . . . . . . . Exploration Rate (%) 49 | 5 94 91 85 89 4 81 35 72 46 11 94 10 87 5 95 13 98 18 74 18 79 21 87 1 50 42 80 24 16 13 Regions Visited 30 Branch Regions 4 Pre-discovered Areas 1 | . . 1 . . . . . . . . . . . . . . . . . . . . . . . . . . . . Known Exits Taken 16 | . . . 1 . 1 . 1 . 1 1 . 1 . 1 . 1 . 1 . 1 . 1 . 1 . 1 1 1 1 . Unknown Exits Taken 4 | 1 1 1 . 1 . . . . . . . . . . . . . . . . . . . . . . . . . . Scrap Searched 1 | . . 1 . . . . . . . . . . . . . . . . . . . . . . . . . . . . Spaces Dug 146 | . 16 . . 5 . . 12 . . . . 4 5 . . 18 1 . . 20 . 3 . . . 8 19 12 23 . Terrain Destroyed 858 | . 36 . 36 71 . . 12 39 . . 7 4 8 3 12 60 40 1 11 29 16 33 21 . 69 108 54 36 66 86 Melee . | . . . . . . . . . . . . . . . . . . . . . . . . . . . . . . . Projectile 226 | . . . 6 6 . . . . . . 5 4 1 2 10 . 13 1 7 10 11 23 14 . 20 15 24 12 25 17 AOE 554 | . 36 . 30 65 . . 12 39 . . 2 . 7 . . 60 27 . 4 19 4 10 5 . 47 90 5 . 27 65 Terrain Rammed . | . . . . . . . . . . . . . . . . . . . . . . . . . . . . . . . Walls Destroyed . | . . . . . . . . . . . . . . . . . . . . . . . . . . . . . . . Machines Disabled . | . . . . . . . . . . . . . . . . . . . . . . . . . . . . . . . Actions | -11 -10 -10 -9 -9 -8 -8 -8 -8 -8 -7 -7 -7 -7 -6 -6 -6 -6 -5 -5 -5 -5 -4 -4 -4 -4 -3 -3 -2 -1 -1 --------- Run | Yrd Mat Min Mat Sto Mat Gar Mat Gar Mat Fac Gar Fac Gar Fac Gar Fac Gar Fac Gar Fac Gar Fac Gar Fac Gar Res Tes Res Acc Com Total 22055 | 80 1087 681 1373 957 17 720 706 803 562 127 1273 357 845 171 1037 360 1304 409 1143 426 1210 771 1231 14 453 1438 841 537 517 605 Wait 1412 | . 44 14 56 37 . 28 88 39 70 5 64 26 73 7 28 35 41 4 90 22 71 49 119 . 77 112 44 15 28 126 Move 16755 | 56 943 630 1064 762 15 605 487 644 446 113 936 287 581 118 806 225 1007 370 902 349 925 583 944 14 296 981 560 410 377 319 Hop . | . . . . . . . . . . . . . . . . . . . . . . . . . . . . . . . Pick Up 462 | 12 15 9 45 22 . 4 14 12 6 2 23 7 18 7 20 5 39 6 22 7 14 9 25 . 9 38 27 20 9 16 Fast Attach 170 | 2 . . 7 8 . . 15 5 2 . 10 4 5 4 5 5 8 1 10 4 15 10 6 . 1 13 22 4 3 1 Attach 188 | 5 . 5 14 1 2 2 . 6 . 3 8 1 7 3 12 4 17 3 7 . 6 8 2 . 6 18 12 3 7 26 Detach 19 | . . . . . . . . . . . 1 . . . 1 1 . . 1 . 3 1 1 . . 1 3 . 2 4 Swap 539 | 1 10 . 24 22 . 8 14 10 4 1 21 7 13 7 12 16 39 4 14 11 32 33 26 . 10 94 46 19 20 21 Drop 533 | . 2 4 42 33 . 3 31 19 7 2 27 11 23 8 27 9 33 6 31 12 26 10 29 . 9 43 48 23 10 5 Fire 1710 | 4 61 14 117 64 . 62 57 62 26 . 74 12 61 15 119 58 106 14 66 20 109 68 74 . 45 136 79 43 59 85 Melee 5 | . . . . . . . . . . . . . . . . . 5 . . . . . . . . . . . . . Ram 4 | . . 3 . . . . . . . . . 1 . . . . . . . . . . . . . . . . . . Kick . | . . . . . . . . . . . . . . . . . . . . . . . . . . . . . . . Crush 40 | . 12 2 4 7 . . . . 1 1 . 1 . 2 . 2 . 1 . 1 . . . . . 2 . . 2 2 Escape Stasis 91 | . . . . . . 8 . 6 . . 2 . 64 . 5 . 6 . . . . . . . . . . . . . Rewire 127 | . . . . 1 . . . . . . 107 . . . 2 . 3 . . . 9 . 5 . . . . . . . Trap . | . . . . . . . . . . . . . . . . . . . . . . . . . . . . . . . Miscellaneous . | . . . . . . . . . . . . . . . . . . . . . . . . . . . . . . . Route ------- -11/Scrapyard -10/Materials (discovered 6 exits: *Mat x3 / [*Min x2] / [*Sub]) -10/Mines (discovered 2 exits: *Mat x2) -9/Materials (discovered 6 exits: *Mat x3 / *Min / *Sto x2) -9/Storage (discovered 2 exits: *Mat / Rec) -8/Materials (discovered 2 exits: Fac / Gar) -8/Garrison (discovered 3 exits: *Mat x3) -8/Materials (discovered 3 exits: *Fac x2 / Gar) -8/Garrison (discovered 4 exits: *Fac x3 / *Mat) -8/Materials -7/Factory -7/Garrison (discovered 4 exits: *Fac x4) -7/Factory -7/Garrison (discovered 3 exits: *Fac x3) -6/Factory (discovered 2 exits: *Fac / Gar) -6/Garrison (discovered 3 exits: *Fac x3) -6/Factory (discovered 2 exits: Low / Gar) -6/Garrison (discovered 3 exits: *Fac x3) -5/Factory (discovered 2 exits: *Fac / Gar) -5/Garrison (discovered 2 exits: *Fac x2) -5/Factory (discovered 3 exits: *Fac x2 / Gar) -5/Garrison (discovered 2 exits: *Fac x2) -4/Factory -4/Garrison (discovered 3 exits: *Fac x3) -4/Factory -4/Garrison -3/Research (discovered 5 exits: *Res x3 / *Tes x2) -3/Testing -2/Research -1/Access (discovered 2 exits: Sur / *Com) -1/Command (discovered 2 exits: Sur x2) History --------- Turn | Location | Event 4 | -11/Scrapyard | Discovered new exit (range 15) 94 | -11/Scrapyard | Entered Materials 313 | -10/Materials | Build established: Mutant 590 | -10/Materials | Discovered new exit (range 7) 747 | -10/Materials | Discovered new exit (range 12) 1329 | -10/Materials | Discovered new exit (range 15) 1381 | -10/Materials | Core integrity fell below 50% 1732 | -10/Materials | Discovered new exit (range 15) 1747 | -10/Materials | Discovered new exit (range 7) 1759 | -10/Materials | Prayed at D.C.S.S. Altar Unit 1858 | -10/Materials | Discovered new exit (range 14) 2081 | -10/Materials | X0-1V1 foreshadows a heat wave 2290 | -10/Materials | Core integrity permanently improved by X0-1V1 (+300) 2347 | -10/Materials | Ambient heat levels rising (+10) 2588 | -10/Materials | Ambient heat levels rising (+10) 2624 | -10/Materials | Entered Mines 2673 | -10/Mines | Received a Rocket Launcher from a helpful Derelict 2864 | -10/Mines | Discovered new exit (range 15) 3048 | -10/Mines | Weapon slot count temporarily expanded by X0-1V1 (+4) 3073 | -10/Mines | Energy capacity permanently improved by X0-1V1 (+600; -300 max core) 3166 | -10/Mines | X0-1V1 activates XOMVISION 3191 | -10/Mines | Received a Mining Laser from a helpful Derelict 3334 | -10/Mines | Build established: Executioner 3553 | -10/Mines | Discovered new exit (range 9) 3643 | -10/Mines | Learned location of Storage (-9) 3787 | -10/Mines | Entered Materials 3787 | -9/Materials | Evolved 2 slots: Propulsion x1, Utility x1 3809 | -9/Materials | Build established: Mutant 3866 | -9/Materials | Melee accuracy permanently improved by X0-1V1 (+9%; -90 max core) 3880 | -9/Materials | X0-1V1 downgraded hostiles (x1) 3918 | -9/Materials | Discovered new exit (range 15) 3931 | -9/Materials | Destroyed 9 combat bots 4132 | -9/Materials | X0-1V1 sent you to a vault 4134 | -9/Materials | Found Powered Armor 4210 | -9/Materials | Discovered new exit (range 5) 4249 | -9/Materials | Discovered new exit (range 4) 4258 | -9/Materials | Identified exit to Storage 4705 | -9/Materials | Build established: Scavenger-Mutant 5094 | -9/Materials | Weapon slot count temporarily expanded by X0-1V1 (+3) 5324 | -9/Materials | Identified exit to Mines 5324 | -9/Materials | X0-1V1 revealed exit location to -9/Mines 5400 | -9/Materials | Build established: Tank 5439 | -9/Materials | Discovered new exit (range 16) 6027 | -9/Materials | X0-1V1 made a cryptic comment about sterilization and BL-4Z3 6028 | -9/Materials | Build established: Mutant 6161 | -9/Materials | Discovered new exit (range 16) 6163 | -9/Materials | X0-1V1 activates XOMVISION 6214 | -9/Materials | Sterilization system engaged 6214 | -9/Materials | Non-combat units ordered to evacuate 6314 | -9/Materials | Combat units ordered to evacuate 6419 | -9/Materials | Entered Storage 6564 | -9/Storage | Core integrity restored by X0-1V1 (+58) 6627 | -9/Storage | X0-1V1 sent hostile S-10 Pest (x3) 6703 | -9/Storage | Destroyed 8 combat bots 7367 | -9/Storage | Discovered new exit (range 15) 7590 | -9/Storage | Assisted by bots powering up and referring to "LRC-V3" 7804 | -9/Storage | Repaired Powered Armor? 7864 | -9/Storage | Identified exit to Recycling 7864 | -9/Storage | X0-1V1 revealed exit location to -9/Recycling 7876 | -9/Storage | Build established: Commander-Mutant 7953 | -9/Storage | Core integrity restored by X0-1V1 (+86) 8314 | -9/Storage | Found Prototype Launcher 8314 | -9/Storage | Identified Gui. EMP Blaster 8479 | -9/Storage | Entered Materials 8479 | -8/Materials | Accompanied by 7 allies 8479 | -8/Materials | Evolved 2 slots: Utility x1, Weapon x1 8505 | -8/Materials | Identified exit to Factory 8505 | -8/Materials | X0-1V1 revealed exit location to -7/Factory 8517 | -8/Materials | Identified exit to Garrison 8517 | -8/Materials | Entered Garrison 8517 | -8/Garrison | Accompanied by 7 allies 8543 | -8/Garrison | Triggered checkpoint 8568 | -8/Garrison | X0-1V1 rewrote Mercenary 2a IFF filter 8607 | -8/Garrison | Garrison Relay disabled 8661 | -8/Garrison | Garrison Relay disabled 8784 | -8/Garrison | Build established: Commander-Tank 8953 | -8/Garrison | X0-1V1 vaporized surrounding terrain (radius 19) 8971 | -8/Garrison | Triggered checkpoint 9007 | -8/Garrison | Triggered checkpoint 9017 | -8/Garrison | Triggered checkpoint 9144 | -8/Garrison | Discovered new exit (range 9) 9200 | -8/Garrison | Lost 3 allies 9300 | -8/Garrison | Installed Relay Interface Framework 9316 | -8/Garrison | Build established: Tank 9365 | -8/Garrison | Triggered checkpoint 9427 | -8/Garrison | Garrison Relay disabled 9519 | -8/Garrison | Triggered checkpoint 9661 | -8/Garrison | Discovered new exit (range 10) 9684 | -8/Garrison | Identified exit to Materials 9713 | -8/Garrison | Triggered checkpoint 9729 | -8/Garrison | Garrison Relay disabled 9779 | -8/Garrison | X0-1V1 sent you into danger 10043 | -8/Garrison | Triggered checkpoint 10167 | -8/Garrison | Discovered exit to Materials (range 12) 10208 | -8/Garrison | Entered Materials 10441 | -8/Materials | Expanded RIF knowledge: Structural Interface 10694 | -8/Materials | Central database locked down 10830 | -8/Materials | Discovered exit to Factory (range 8) 11206 | -8/Materials | Build established: Scavenger-Tank 11229 | -8/Materials | X0-1V1 sent you to a vault 11236 | -8/Materials | Found Prototype Device 11236 | -8/Materials | Identified Skeleton Box 11349 | -8/Materials | X0-1V1 revealed exit location to -7/Factory 11478 | -8/Materials | Garrison activated, responded to threat 11544 | -8/Materials | Identified exit to Garrison 11544 | -8/Materials | Entered Garrison 11604 | -8/Garrison | Triggered checkpoint 11681 | -8/Garrison | Garrison Relay disabled 11950 | -8/Garrison | X0-1V1 destroyed Phase Generator 11950 | -8/Garrison | Phase Generator disabled 11976 | -8/Garrison | Triggered checkpoint 11989 | -8/Garrison | Build established: Tank 11993 | -8/Garrison | Triggered checkpoint 12035 | -8/Garrison | Core integrity fell below 50% 12056 | -8/Garrison | Destroyed 13 combat bots 12149 | -8/Garrison | Discovered exit to Factory (range 14) 12316 | -8/Garrison | Garrison Relay disabled 12445 | -8/Garrison | Identified exit to Materials 12445 | -8/Garrison | X0-1V1 revealed exit location to -8/Materials 12512 | -8/Garrison | Expanded RIF knowledge: Robot Detection 12602 | -8/Garrison | Triggered checkpoint 12656 | -8/Garrison | Discovered exit to Factory (range 79) 12656 | -8/Garrison | Discovered exit to Factory (range 25) 12656 | -8/Garrison | Discovered exit to Factory (range 82) 12656 | -8/Garrison | Discovered exit to Materials (range 68) 12982 | -8/Garrison | Spotted B-75 Beast 12986 | -8/Garrison | X0-1V1 activates XOMVISION 13066 | -8/Garrison | Triggered checkpoint 13084 | -8/Garrison | Core integrity fell below 20% 13131 | -8/Garrison | Entered Materials 13457 | -8/Materials | X0-1V1 redirected Transport squads to designated parking area 13622 | -8/Materials | Build established: Scavenger-Tank 13889 | -8/Materials | Repaired Imp. Assault Rifle 13937 | -8/Materials | Build established: Tank 14037 | -8/Materials | Discovered exit to Factory (range 14) 14286 | -8/Materials | Entered Factory 14286 | -7/Factory | Evolved 2 slots: Propulsion x1, Utility x1 14362 | -7/Factory | Fabricated Enh. Gauss Cannon (x2) 14552 | -7/Factory | Identified exit to Garrison 14552 | -7/Factory | Entered Garrison 14730 | -7/Garrison | Lost 3 parts (1p2n) 14864 | -7/Garrison | X0-1V1 downgraded hostiles (x1) 15000 | -7/Garrison | Triggered checkpoint 15024 | -7/Garrison | Build established: Scavenger-Tank 15138 | -7/Garrison | Garrison Relay disabled 15198 | -7/Garrison | Core integrity restored by X0-1V1 (+109) 15386 | -7/Garrison | X0-1V1 rewrote 2P-ESY(l) IFF filter 15505 | -7/Garrison | Triggered checkpoint 15508 | -7/Garrison | Triggered checkpoint 15526 | -7/Garrison | Identified exit to Factory 15526 | -7/Garrison | X0-1V1 revealed exit location to -7/Factory 15588 | -7/Garrison | Expanded RIF knowledge: Threat Obfuscation 15644 | -7/Garrison | Triggered checkpoint 15666 | -7/Garrison | Garrison Relay disabled 15709 | -7/Garrison | Discovered exit to Factory (range 20) 15874 | -7/Garrison | X0-1V1 revealed exit location to -7/Factory 15968 | -7/Garrison | Triggered checkpoint 16094 | -7/Garrison | Triggered checkpoint 16171 | -7/Garrison | Garrison Relay disabled 16341 | -7/Garrison | Triggered checkpoint 16500 | -7/Garrison | X0-1V1 revealed exit location to -7/Factory 16661 | -7/Garrison | Discovered exit to Factory (range 48) 16661 | -7/Garrison | Discovered exit to Factory (range 15) 16661 | -7/Garrison | Discovered exit to Factory (range 68) 16661 | -7/Garrison | Discovered exit to Factory (range 73) 16802 | -7/Garrison | X0-1V1 activates XOMVISION 16862 | -7/Garrison | Triggered checkpoint 16902 | -7/Garrison | System corruption reached 10% 16924 | -7/Garrison | Entered Factory 16924 | -7/Factory | Accompanied by 3 allies 16972 | -7/Factory | X0-1V1 redirected Transport squads to designated parking area 17116 | -7/Factory | Repaired Gauss Cannon 17186 | -7/Factory | Lost 3 allies 17344 | -7/Factory | Identified exit to Garrison 17389 | -7/Factory | Garrison activated, responded to threat 17427 | -7/Factory | Entered Garrison 17507 | -7/Garrison | Triggered checkpoint 17526 | -7/Garrison | Garrison Relay disabled 17592 | -7/Garrison | Expanded RIF knowledge: Alert ID Control 17773 | -7/Garrison | Triggered checkpoint 17779 | -7/Garrison | X0-1V1 activates XOMVISION 18037 | -7/Garrison | Discovered new exit (range 13) 18156 | -7/Garrison | X0-1V1 sent allied H-71 Marshal (x1) 18192 | -7/Garrison | Core integrity restored by X0-1V1 (+122) 18250 | -7/Garrison | Triggered checkpoint 18258 | -7/Garrison | Triggered checkpoint 18336 | -7/Garrison | Discovered new exit (range 10) 18501 | -7/Garrison | Triggered checkpoint 18630 | -7/Garrison | Garrison Relay disabled 18650 | -7/Garrison | Discovered new exit (range 9) 18662 | -7/Garrison | Entered Factory 18662 | -6/Factory | Accompanied by 1 ally 18662 | -6/Factory | Evolved 2 slots: Propulsion x1, Utility x1 18712 | -6/Factory | X0-1V1 sent you to a vault 18778 | -6/Factory | Discovered new exit (range 13) 18787 | -6/Factory | Garrison activated, responded to threat 18949 | -6/Factory | Garrison activated, responded to threat 18973 | -6/Factory | Identified exit to Garrison 18973 | -6/Factory | Entered Garrison 18973 | -6/Garrison | Accompanied by 1 ally 19021 | -6/Garrison | Build established: Bothacker-Gunner 19035 | -6/Garrison | Triggered checkpoint 19063 | -6/Garrison | X0-1V1 downgraded hostiles (x1) 19144 | -6/Garrison | Garrison Relay disabled 19421 | -6/Garrison | Triggered checkpoint 19588 | -6/Garrison | Discovered new exit (range 10) 19603 | -6/Garrison | Triggered checkpoint 19833 | -6/Garrison | Garrison Relay disabled 19927 | -6/Garrison | X0-1V1 activates XOMVISION 19945 | -6/Garrison | Triggered checkpoint 19973 | -6/Garrison | Spotted B-75 Beast 20059 | -6/Garrison | Expanded RIF knowledge: Zone Cloak 20070 | -6/Garrison | Spotted B-75 Beast 20070 | -6/Garrison | Assimilated Beast 5a with formatsys_high 20093 | -6/Garrison | Destroyed B-75 Beast 20268 | -6/Garrison | Identified exit to Factory 20268 | -6/Garrison | X0-1V1 revealed exit location to -6/Factory 20337 | -6/Garrison | Triggered checkpoint 20380 | -6/Garrison | Build established: Scavenger-Gunner 20433 | -6/Garrison | X0-1V1 sent hostile S-27 Virus (x4) 20491 | -6/Garrison | Garrison Relay disabled 20582 | -6/Garrison | Garrison Relay disabled 20654 | -6/Garrison | Remotely autohacked Sealed Heavy Doors 20655 | -6/Garrison | Rescued a captive Derelict 20681 | -6/Garrison | Triggered checkpoint 20731 | -6/Garrison | Discovered exit to Factory (range 7) 20758 | -6/Garrison | Build established: Scavenger-Tank 20852 | -6/Garrison | X0-1V1 activates XOMVISION 20975 | -6/Garrison | Garrison Relay disabled 20997 | -6/Garrison | Triggered checkpoint 21248 | -6/Garrison | Entered Factory 21248 | -6/Factory | Accompanied by 1 ally 21484 | -6/Factory | Identified exit to Lower Caves 21484 | -6/Factory | X0-1V1 revealed exit location to -6/Lower Caves 21576 | -6/Factory | Found Prototype Launcher 21577 | -6/Factory | Identified Rocket Array 21598 | -6/Factory | First assault squad dispatched 21600 | -6/Factory | Build established: Bothacker-Gunner 21689 | -6/Factory | X0-1V1 sent allied Wizard (x4) 21726 | -6/Factory | Garrison activated, responded to threat 21796 | -6/Factory | Lost 5 allies 21911 | -6/Factory | Identified exit to Garrison 21911 | -6/Factory | Entered Garrison 21927 | -6/Garrison | Expanded RIF knowledge: Code Merge 21975 | -6/Garrison | X0-1V1 sent allied Chaos Knight 2.0 (x1) 21999 | -6/Garrison | Triggered checkpoint 22039 | -6/Garrison | Garrison Relay disabled 22163 | -6/Garrison | Lost 3 allies 22200 | -6/Garrison | Remotely autohacked Sealed Heavy Doors 22284 | -6/Garrison | X0-1V1 activates XOMVISION 22309 | -6/Garrison | Lost 7 parts (1p3n1u2w) 22440 | -6/Garrison | Core integrity restored by X0-1V1 (+195) 22445 | -6/Garrison | Triggered checkpoint 22506 | -6/Garrison | Triggered checkpoint 22523 | -6/Garrison | Triggered checkpoint 22547 | -6/Garrison | Destroyed 7 combat bots 22646 | -6/Garrison | Garrison Relay disabled 22684 | -6/Garrison | Discovered new exit (range 11) 22720 | -6/Garrison | Triggered checkpoint 22722 | -6/Garrison | Spotted Striker 22786 | -6/Garrison | Lost 4 allies 22809 | -6/Garrison | Garrison Relay disabled 22859 | -6/Garrison | Spotted Striker 22947 | -6/Garrison | Rewired Executioner 22952 | -6/Garrison | Rewired Executioner 23145 | -6/Garrison | Identified exit to Factory 23145 | -6/Garrison | X0-1V1 revealed exit location to -5/Factory 23541 | -6/Garrison | Garrison Relay disabled 23767 | -6/Garrison | Found embedded Infiltrators 23883 | -6/Garrison | Discovered exit to Factory (range 2) 23902 | -6/Garrison | Phase Generator disabled 23929 | -6/Garrison | Allies destroyed Executioner 23985 | -6/Garrison | Lost 3 allies 24035 | -6/Garrison | Build established: Botlord-Tank 24083 | -6/Garrison | Triggered checkpoint 24089 | -6/Garrison | Garrison Relay disabled 24205 | -6/Garrison | Entered Factory 24205 | -5/Factory | Accompanied by 1 ally 24205 | -5/Factory | Evolved 2 slots: Utility x1, Weapon x1 24505 | -5/Factory | First assault squad dispatched 24629 | -5/Factory | Found Prototype Processor 24629 | -5/Factory | Identified Exp. Core Analyzer 24677 | -5/Factory | Discovered new exit (range 10) 24842 | -5/Factory | Identified exit to Garrison 24842 | -5/Factory | Entered Garrison 25006 | -5/Garrison | Garrison Relay disabled 25107 | -5/Garrison | Triggered checkpoint 25176 | -5/Garrison | Triggered checkpoint 25246 | -5/Garrison | Identified exit to Factory 25246 | -5/Garrison | X0-1V1 revealed exit location to -5/Factory 25277 | -5/Garrison | Discovered exit to Factory (range 15) 25318 | -5/Garrison | X0-1V1 activates XOMVISION 25360 | -5/Garrison | Expanded RIF knowledge: Watcher Feeds 25410 | -5/Garrison | Triggered checkpoint 25423 | -5/Garrison | Garrison Relay disabled 25586 | -5/Garrison | Triggered checkpoint 25747 | -5/Garrison | Garrison Relay disabled 25759 | -5/Garrison | Triggered checkpoint 25782 | -5/Garrison | X0-1V1 upgraded hostiles (x1) 25895 | -5/Garrison | Expanded RIF knowledge: Zone Cloak 25925 | -5/Garrison | Spotted B-75 Beast 25942 | -5/Garrison | Rewired B-86 Titan 25953 | -5/Garrison | Rewired B-86 Titan 25986 | -5/Garrison | Spotted B-86 Titan 26020 | -5/Garrison | Allies destroyed B-86 Titan 26038 | -5/Garrison | Allies destroyed B-75 Beast 26360 | -5/Garrison | X0-1V1 activates XOMVISION 26406 | -5/Garrison | Triggered checkpoint 26547 | -5/Garrison | X0-1V1 mutated your Weapon slot to Utility slot 26635 | -5/Garrison | Entered Factory 26635 | -5/Factory | Accompanied by 1 ally 26760 | -5/Factory | Build established: Botlord-Gunner 26935 | -5/Factory | First assault squad dispatched 26935 | -5/Factory | Spotted B-75 Beast 26941 | -5/Factory | Identified exit to Factory 26941 | -5/Factory | X0-1V1 revealed exit location to -4/Factory 26960 | -5/Factory | Destroyed B-75 Beast 27181 | -5/Factory | Build established: Botlord-Tank 27249 | -5/Factory | Discovered exit to Factory (range 39) 27276 | -5/Factory | X0-1V1 sent allied Savage (x3) 27306 | -5/Factory | Identified exit to Garrison 27309 | -5/Factory | Entered Garrison 27309 | -5/Garrison | Accompanied by 3 allies 27364 | -5/Garrison | X0-1V1 destroyed Phase Generator 27364 | -5/Garrison | Phase Generator disabled 27422 | -5/Garrison | X0-1V1 revealed exit location to -4/Factory 27467 | -5/Garrison | Lost 3 allies 27541 | -5/Garrison | Triggered checkpoint 27643 | -5/Garrison | Triggered checkpoint 27671 | -5/Garrison | Garrison Relay disabled 27731 | -5/Garrison | Expanded RIF knowledge: Program Shield 27852 | -5/Garrison | Triggered checkpoint 27893 | -5/Garrison | Triggered checkpoint 27930 | -5/Garrison | System corruption reached 10% 28131 | -5/Garrison | Triggered checkpoint 28157 | -5/Garrison | Discovered exit to Factory (range 12) 28172 | -5/Garrison | Lost 3 allies 28337 | -5/Garrison | Triggered checkpoint 28415 | -5/Garrison | Garrison Relay disabled 28455 | -5/Garrison | X0-1V1 rewrote Beamer 6b IFF filter 28570 | -5/Garrison | Triggered checkpoint 28651 | -5/Garrison | Garrison Relay disabled 28706 | -5/Garrison | Spotted B-75 Beast 28759 | -5/Garrison | Expanded RIF knowledge: Coupler Efficiency 28874 | -5/Garrison | Destroyed B-75 Beast 28941 | -5/Garrison | Found Relay Coupler [Proto] 29335 | -5/Garrison | Entered Factory 29335 | -4/Factory | Evolved 2 slots: Power x1, Weapon x1 29536 | -4/Factory | X0-1V1 sent you to a vault 29554 | -4/Factory | Found Prototype Device 29554 | -4/Factory | Identified Exp. Sensor Array 29585 | -4/Factory | First assault squad dispatched 29802 | -4/Factory | System corruption reached 10% 29810 | -4/Factory | Spotted B-86 Titan 29818 | -4/Factory | Assimilated Titan 7a with formatsys_high 29827 | -4/Factory | X0-1V1 whisked you away to safety 30166 | -4/Factory | Destroyed 8 combat bots 30296 | -4/Factory | Garrison activated, responded to threat 30308 | -4/Factory | Spotted B-86 Titan 30309 | -4/Factory | Assimilated Titan 7b with formatsys_high 30359 | -4/Factory | Destroyed 10 combat bots 30527 | -4/Factory | Garrison activated, responded to threat 30557 | -4/Factory | X0-1V1 activates XOMVISION 30582 | -4/Factory | Identified exit to Garrison 30582 | -4/Factory | Entered Garrison 30648 | -4/Garrison | Triggered checkpoint 30740 | -4/Garrison | Found Skeleton Box 30751 | -4/Garrison | Remotely autohacked Sealed Heavy Doors 30752 | -4/Garrison | Rescued a captive Derelict 30752 | -4/Garrison | Rescued a captive Derelict 30800 | -4/Garrison | Triggered checkpoint 30815 | -4/Garrison | Triggered checkpoint 30821 | -4/Garrison | Spotted B-86 Titan 30826 | -4/Garrison | X0-1V1 downgraded hostiles (x4) 30829 | -4/Garrison | Spotted B-75 Beast 30847 | -4/Garrison | Destroyed B-75 Beast 30868 | -4/Garrison | Destroyed 7 combat bots 30901 | -4/Garrison | Lost 4 allies 31064 | -4/Garrison | Triggered checkpoint 31115 | -4/Garrison | Discovered new exit (range 7) 31128 | -4/Garrison | Identified exit to Factory 31128 | -4/Garrison | X0-1V1 revealed exit location to -4/Factory 31131 | -4/Garrison | Spotted B-86 Titan 31282 | -4/Garrison | Triggered checkpoint 31421 | -4/Garrison | Garrison Relay disabled 31534 | -4/Garrison | Triggered checkpoint 31603 | -4/Garrison | Expanded RIF knowledge: Command Fork 31656 | -4/Garrison | Garrison Relay disabled 31684 | -4/Garrison | Discovered exit to Factory (range 8) 31754 | -4/Garrison | X0-1V1 activates XOMVISION 31828 | -4/Garrison | Garrison Relay disabled 31984 | -4/Garrison | Triggered checkpoint 32051 | -4/Garrison | Garrison Relay disabled 32122 | -4/Garrison | Allies destroyed B-86 Titan 32198 | -4/Garrison | X0-1V1 upgraded ally (x1) 32241 | -4/Garrison | Lost 4 allies 32465 | -4/Garrison | Entered Factory 32487 | -4/Factory | Identified exit to Garrison 32487 | -4/Factory | Entered Garrison 32526 | -4/Garrison | Triggered checkpoint 32610 | -4/Garrison | Garrison Relay disabled 32630 | -4/Garrison | X0-1V1 destroyed Phase Generator 32630 | -4/Garrison | Phase Generator disabled 32730 | -4/Garrison | X0-1V1 vaporized surrounding terrain (radius 17) 32732 | -4/Garrison | Triggered checkpoint 32783 | -4/Garrison | Triggered checkpoint 32783 | -4/Garrison | Spotted B-86 Titan 32804 | -4/Garrison | Destroyed B-86 Titan 32912 | -4/Garrison | X0-1V1 activates XOMVISION 32965 | -4/Garrison | Triggered checkpoint 33067 | -4/Garrison | Expanded RIF knowledge: Patrol Navigation 33197 | -4/Garrison | Discovered new exit (range 11) 33215 | -4/Garrison | Entered Research 33215 | -3/Research | Evolved 2 slots: Propulsion x1, Utility x1 33318 | -3/Research | X0-1V1 sent you to a vault 33319 | -3/Research | Discovered new exit (range 7) 33358 | -3/Research | Lost 3 allies 33485 | -3/Research | Discovered new exit (range 4) 33715 | -3/Research | First assault squad dispatched 33844 | -3/Research | Destroyed 9 combat bots 33852 | -3/Research | Found Prototype Device 33853 | -3/Research | Identified Exp. ECM Suite 34367 | -3/Research | X0-1V1 announced a LAN party 34390 | -3/Research | Found Prototype Processor 34391 | -3/Research | Identified Exp. Terrain Scan Processor 34396 | -3/Research | Found Exp. Terrain Scan Processor 34492 | -3/Research | X0-1V1 activates XOMVISION 34550 | -3/Research | Identified exit to Research 34550 | -3/Research | X0-1V1 revealed exit location to -2/Research 34599 | -3/Research | System corruption reached 10% 34639 | -3/Research | X0-1V1 revealed exit location to -2/Research 34869 | -3/Research | X0-1V1 sent you into danger 34970 | -3/Research | Found Prototype Launcher 34970 | -3/Research | Identified Smartbomb Launcher 35054 | -3/Research | Identified exit to Testing 35606 | -3/Research | Entered Testing 35661 | -3/Testing | X0-1V1 sent hostile Guerrilla (x2) 35711 | -3/Testing | Found Prototype Launcher 35711 | -3/Testing | Identified Hellfire Missile Launcher 35717 | -3/Testing | X0-1V1 activates XOMVISION 35792 | -3/Testing | X0-1V1 mutated your Utility slot to Weapon slot 35803 | -3/Testing | Found Prototype Device 35806 | -3/Testing | Identified Exp. Thermal Defense Suite 35806 | -3/Testing | Central database locked down 35993 | -3/Testing | Found Prototype Ballistic Cannon 35993 | -3/Testing | Identified Perforator 36058 | -3/Testing | Found Prototype Hackware 36192 | -3/Testing | X0-1V1 sent you into danger 36238 | -3/Testing | Discovered exit to Research (range 27) 36343 | -3/Testing | Found Prototype Device 36343 | -3/Testing | Identified AEGIS Remote Shield 36629 | -3/Testing | Found Prototype Device 36629 | -3/Testing | Identified 2N-1CE's Frost Array 36688 | -3/Testing | Remotely autohacked Sealed Heavy Doors 36706 | -3/Testing | Found Prototype Protection 36782 | -3/Testing | Found Prototype Device 36782 | -3/Testing | Identified Exp. EM Disruption Field 36878 | -3/Testing | Build established: Scavenger-Tank 36914 | -3/Testing | Found Prototype Energy Cannon 36914 | -3/Testing | Identified Potential Cannon 37010 | -3/Testing | Entered Research 37010 | -2/Research | Evolved 2 slots: Utility x2 37011 | -2/Research | Identified SHELL Armor 37013 | -2/Research | Identified exit to Access 37013 | -2/Research | X0-1V1 revealed exit location to -1/Access 37209 | -2/Research | X0-1V1 sent you to a vault 37223 | -2/Research | Found Prototype Device 37224 | -2/Research | Identified Exp. Focal Shield 37227 | -2/Research | Found Prototype Device 37228 | -2/Research | Identified Exp. Thermal Shield 37247 | -2/Research | Found Prototype Device 37248 | -2/Research | Identified Thermal Barrier 37726 | -2/Research | X0-1V1 sent allied Cetus Guard (x2) 37899 | -2/Research | Entered Access 37899 | -1/Access | Evolved 2 slots: Power x1, Propulsion x1 38045 | -1/Access | Destroyed 10 combat bots 38320 | -1/Access | Identified exit to Command 38350 | -1/Access | X0-1V1 destroyed Energy Cycler 38350 | -1/Access | Energy Cycler disabled 38436 | -1/Access | Spotted B-99 Colossus 38450 | -1/Access | Destroyed B-99 Colossus 38496 | -1/Access | X0-1V1 turns hostiles against one another 38526 | -1/Access | Spotted B-99 Colossus 38550 | -1/Access | Destroyed B-99 Colossus 38586 | -1/Access | X0-1V1 redirected Transport squads to designated parking area 38606 | -1/Access | Build established: Tank 38729 | -1/Access | Identified exit to Surface 38729 | -1/Access | X0-1V1 revealed exit location to -0/Surface 38758 | -1/Access | Entered Command 38847 | -1/Command | Spotted B-99 Colossus 38862 | -1/Command | X0-1V1 mutated your Utility slot to Power slot 38955 | -1/Command | X0-1V1 mutated your Propulsion slot to Utility slot 39018 | -1/Command | Spotted Combat Programmer 39018 | -1/Command | Spotted Combat Programmer 39022 | -1/Command | Destroyed Combat Programmer 39026 | -1/Command | X0-1V1 sent allied Mutant (x3) 39026 | -1/Command | Spotted M Guard 39026 | -1/Command | Spotted M Guard 39034 | -1/Command | Combat Programmer assimilated allied TL-BQU(M) 39043 | -1/Command | Destroyed Combat Programmer 39046 | -1/Command | Assimilated M Guard with formatsys_high 39055 | -1/Command | Assimilated M Guard with formatsys_high 39171 | -1/Command | Build established: Generator-Tank 39193 | -1/Command | Met MAIN.C 39193 | -1/Command | 0b10 Conduit disabled 39202 | -1/Command | Destroyed MAIN.C Shell 39205 | -1/Command | MAIN.C activated Command garrisons 39205 | -1/Command | Surrendered to MAIN.C 39205 | -1/Command | Loaded intel: 65 machine locations 39205 | -1/Command | Loaded intel: 101 trap records 39205 | -1/Command | Discovered exit to Surface (range 90) 39205 | -1/Command | Discovered exit to Surface (range 40) 39562 | -1/Command | MAIN.C activated Command garrisons 39598 | -1/Command | Unknown forces attacked Command 39598 | -1/Command | Spotted EQ-000 39598 | -1/Command | Spotted EQ-005 39598 | -1/Command | Spotted EQ-001 39598 | -1/Command | Spotted EQ-003 39598 | -1/Command | Spotted EQ-004 39598 | -1/Command | Spotted EQ-002 39605 | -1/Command | Destroyed EQ-003 39608 | -1/Command | System corruption reached 10% 39627 | -1/Command | All MAIN.C guards destroyed 39633 | -1/Command | Destroyed EQ-002 39661 | -1/Command | Found Prototype Reactor 39665 | -1/Command | Found Corrupted Prototype Reactor 39671 | -1/Command | Identified Zero-point Reactor (x2) 39680 | -1/Command | Spotted EQ-024 39680 | -1/Command | Spotted EQ-020 39686 | -1/Command | Spotted EQ-018 39701 | -1/Command | Found Exp. Armor Integrity Analyzer 39706 | -1/Command | Spotted EQ-028 39708 | -1/Command | Destroyed EQ-024 39713 | -1/Command | System corruption reached 30% 39714 | -1/Command | Spotted EQ-016 39715 | -1/Command | Lost 3 allies 39715 | -1/Command | Spotted EQ-021 39740 | -1/Command | Spotted EQ-006 39746 | -1/Command | Spotted EQ-013 39746 | -1/Command | Spotted EQ-032 39759 | -1/Command | Core integrity fell below 50% 39762 | -1/Command | Destroyed EQ-016 39773 | -1/Command | Destroyed EQ-021 39782 | -1/Command | Spotted EQ-044 39782 | -1/Command | Spotted EQ-050 39782 | -1/Command | Spotted EQ-038 39782 | -1/Command | Spotted EQ-039 39788 | -1/Command | Spotted EQ-034 39793 | -1/Command | Spotted EQ-052 39794 | -1/Command | Spotted EQ-015 39805 | -1/Command | Destroyed EQ-015 39808 | -1/Command | Destroyed EQ-032 39819 | -1/Command | Destroyed EQ-006 39825 | -1/Command | Spotted EQ-051 39834 | -1/Command | Core integrity fell below 20% 39875 | -1/Command | Destroyed EQ-051 39889 | -1/Command | Destroyed by EQ-055 with Hardcell Cannon Last Messages --------------- Exp. Biometal Heavy Treads destroyed. Penetrated by Slug. EQ-052 destroyed. Acquired Corrupted Prototype Energy Cannon. Railgun+ destroyed. Acquired Prototype Protection. System corrupted: Component data lost. Identified Exp. Core Shielding. Identified Cld. Proton Cannon. Integrated Corrupted Cld. Proton Cannon (+5). Identified Graviton Cannon. Integrated Corrupted Graviton Cannon (+2). Complication: FCS attempts to trigger Graviton Cannon. Complication: Graviton Cannon misfires. Acquired 1 matter. Penetrated by Slug. X0-1V1: "I had everything to do with that." System corrupted: Component data lost. X0-1V1 howls with laughter! Map ----- +----------------------------------------------------+ | #???????????????????????????????????#?#?#???? | | #######????????????????????????????????#?#?#???? | | # #????????????????????????????????#?#?#???? | | + #????????????????????????????????#?#?#???? | | # # #????????????????????????????????#?#?#???? | | # # #????????????????????????????????#?#?#???? | | # # #????????????????????????????????#?#?#???? | | # # #????????????????????????????????#?#?#???? | | # # #????????????????????????????????#?#?#???? | | # # #????????????????????????????????#?#?#???? | | # # #????????????????????????????????#?#?#???? | | # # /#?###########################????#?#?#???? | | # # #?#?????????????????????????#????#?#?#???? | | # # #?#?#######################?#????#?#?#???? | | # #######?#?#" " " " % ################ | | #/#######?#?#" % % !#?#????????????? | | # #?#?# ! !!################ | | # #?#?# ![=/=]% ! | | # "" "?#?#% !!*/%!% | | # """ #?#?# % % !]=*!!% | | # T" ###?# %!% !!################ | | # """ "?#?# ! M %]*! #?#????????????? | | #^ "" #?#?# % %* !=!%!= % ################ | | + #?#?# |[ %%% ""#?#????#?#?#???? | | # ###?# =% %%! % "#?#????#?#?#???? | | # "?#?# ! %!@!% ""#?#????#?#?#???? | | ###?# ! * ""#?#????#?#?#???? | | ""##?# = % #?#????#?#?#???? | | #### #?#????#?#?#???? | | % % % % ! #?#????#?#?#???? | | =% % ^ #?#????#?#?#???? | | ! ! % #?#????#?#?#???? | | %% # # %% #?#????#?#?#???? | | # # %= %""#?#????#?#?#???? | | # ## # % % % #?#????#?#?#???? | | # ## #######################?#????#?#?#???? | | ### ## #???????????????????????#????#?#?#???? | | #?### ############################????#?#?#???? | | ##########???????????????????????????????#?#?#???? | | #????????????????????????????????#?#?#???? | | #????????????????????????????????#?#?#???? | | "" #????????????????????????????????#?#?#???? | | """" #????????????????????????????????#?#?#???? | | """" #????????????????????????????????#?#?#???? | | "" #????????????????????????????????#?#?#???? | | #????????????????????????????????#?#?#???? | | #????????????????????????????????#?#?#???? | | #################????????????????????????#?#?#???? | | #????????????????????????#?#?#???? | | T#????????????????????????#?#?#???? | +----------------------------------------------------+ Best States ------------- Heat Dissipation 208 Energy Generation 101 Energy Capacity 3590 Matter Stores 1000 Matter Capacity 1000 Sight Range 24 Terrain Scan Density 10 Jamming Range 16 Base Temperature (-) 200 Armor Coverage 1800 Resistance: KI 25 Resistance: TH 69 Resistance: EM 20 Core Shielding 40 Point Defense Rating 240 Weapon Cycling 20 Phase Shifting 15 Evasion (%) 55 Core Analysis 8 Armor Integrity Analysis 50 Recoil Reduction 7 Offensive Hacking 14 Relay Coupler Types 3 Relay Coupler Value 266 Item Schematics ----------------- Huge Storage Unit | -10/Materials | Hacked Neutron Missile Launcher | -3/Testing | Archive Diametric Drive | -3/Testing | Archive Robot Schematics ------------------ B-74 Champion | -3/Testing | Archive A-02 Transporter | -3/Testing | Archive Fabricated ------------ Enh. Gauss Cannon | x2 | -7/Factory | Preloaded Repaired ---------- Powered Armor | 12% | -9/Storage Imp. Assault Rifle | 38% | -8/Materials Gauss Cannon | 65% | -7/Factory Studied --------- Lgt. Treads | -9/Materials | Hacked Hvy. Assault Rifle | -9/Materials | Hacked Rocket Launcher | -9/Materials | Hacked Imp. Treads | -8/Materials | Hacked Nuclear Core | -8/Materials | Hacked Missile Launcher | -8/Materials | Hacked Hpw. Shotgun | -8/Materials | Hacked Railgun | -3/Testing | Hacked Quantum Reactor | -1/Access | Hacked Alien Tech Used ----------------- None Achievements -------------- Prodigal Son RIFT Wizard Challenges ------------ None Game ------ Seed VoltaicDerelictRedirector Manual? 0 Play Time 08:36:19 Cumulative 462.3 hours Start 2026.06.27 @ 13:50:46 End 2026.06.29 @ 15:52:25 Sessions 11 Manual Loads 0 Difficulty Rogue Special Mode None Game No. 288 Rogue 288 Adventurer 0 Explorer 0 Win Type - Total 32 Types 16/1/7/2/1/1/1/1/0/2 Lore% 95 Gallery% 89 Achievement% 81 Wizard Run 0 Options --------- Layout 1 ASCII 0 Keyboard 0 Movement Numpad Keybinds 0 Fullscreen 1 Font 24/Proggy Map View 50x35 Zoom Use 0% Tactical HUD 0 Map Filters NONE Filters NONE Steam 1 RUN: 280eb1b1-0da5-4cf2-966d-a57775840174